Publisher Label,Publisher URI,"Supplier ID","Supplier","Invoice No.","Amount £","Purpose","Transaction Number","Payment Date","Organisational Unit","Cost Centre(T)","Internal Category Number"
"Wolverhampton City Council","http://opendatacommunities.org/id/metropolitan-district-council/wolverhampton","705966","NPOWER Limited-Mba Accounts Receivable","LGU7HFJK","137.10","Electricity","130228307","14/09/2018","Independent Living Service","Telecare","R2100"
"Wolverhampton City Council","http://opendatacommunities.org/id/metropolitan-district-council/wolverhampton","705994","Oaklawn Guest House Limited","P18464820180911","833.00","TPP - Accommodation","190503988","12/09/2018","Community Financial Support","Destitute Plus","R5603"
"Wolverhampton City Council","http://opendatacommunities.org/id/metropolitan-district-council/wolverhampton","705994","Oaklawn Guest House Limited","P18464820180911","323.00","TPP - Accommodation","190503988","12/09/2018","Community Financial Support","Destitute Plus","R5603"
"Wolverhampton City Council","http://opendatacommunities.org/id/metropolitan-district-council/wolverhampton","705994","Oaklawn Guest House Limited","P18464820180911","238.00","TPP - Accommodation","190503988","12/09/2018","Community Financial Support","Destitute Plus","R5603"
"Wolverhampton City Council","http://opendatacommunities.org/id/metropolitan-district-council/wolverhampton","705994","Oaklawn Guest House Limited","P18604820180924","153.00","TPP - Accommodation","190510199","26/09/2018","Community Financial Support","Destitute Plus","R5603"
"Wolverhampton City Council","http://opendatacommunities.org/id/metropolitan-district-council/wolverhampton","705995","Oakley�S Limited","175220","158.76","Equipment - Purchase","190503198","07/09/2018","Fleet Services","Fleet Management","R4000"
"Wolverhampton City Council","http://opendatacommunities.org/id/metropolitan-district-council/wolverhampton","705995","Oakley�S Limited","175300","54.11","Equipment - Purchase","190508089","19/09/2018","Fleet Services","Fleet Management","R4000"
"Wolverhampton City Council","http://opendatacommunities.org/id/metropolitan-district-council/wolverhampton","705995","Oakley�S Limited","175300","275.93","Equipment - Purchase","190508089","19/09/2018","Fleet Services","Fleet Management","R4000"
"Wolverhampton City Council","http://opendatacommunities.org/id/metropolitan-district-council/wolverhampton","705995","Oakley�S Limited","175262","11.08","Equipment - Purchase","190505031","14/09/2018","Fleet Services","Fleet Management","R4000"
"Wolverhampton City Council","http://opendatacommunities.org/id/metropolitan-district-council/wolverhampton","705995","Oakley�S Limited","175262","8.06","Equipment - Purchase","190505031","14/09/2018","Fleet Services","Fleet Management","R4000"
"Wolverhampton City Council","http://opendatacommunities.org/id/metropolitan-district-council/wolverhampton","705995","Oakley�S Limited","175239","71.65","Equipment - Purchase","190505028","14/09/2018","Fleet Services","Fleet Management","R4000"
"Wolverhampton City Council","http://opendatacommunities.org/id/metropolitan-district-council/wolverhampton","705995","Oakley�S Limited","175239","17.85","Equipment - Purchase","190505028","14/09/2018","Fleet Services","Fleet Management","R4000"
"Wolverhampton City Council","http://opendatacommunities.org/id/metropolitan-district-council/wolverhampton","705995","Oakley�S Limited","175229","5.54","Equipment - Purchase","190505027","14/09/2018","Fleet Services","Fleet Management","R4000"
"Wolverhampton City Council","http://opendatacommunities.org/id/metropolitan-district-council/wolverhampton","705995","Oakley�S Limited","175229","0.38","Equipment - Purchase","190505027","14/09/2018","Fleet Services","Fleet Management","R4000"
"Wolverhampton City Council","http://opendatacommunities.org/id/metropolitan-district-council/wolverhampton","705995","Oakley�S Limited","175353","219.53","Equipment - Purchase","190508090","19/09/2018","Fleet Services","Fleet Management","R4000"
"Wolverhampton City Council","http://opendatacommunities.org/id/metropolitan-district-council/wolverhampton","705995","Oakley�S Limited","175353","96.50","Equipment - Purchase","190508090","19/09/2018","Fleet Services","Fleet Management","R4000"
"Wolverhampton City Council","http://opendatacommunities.org/id/metropolitan-district-council/wolverhampton","705995","Oakley�S Limited","175353","9.82","Equipment - Purchase","190508090","19/09/2018","Fleet Services","Fleet Management","R4000"
"Wolverhampton City Council","http://opendatacommunities.org/id/metropolitan-district-council/wolverhampton","705995","Oakley�S Limited","175263","6.40","Equipment - Purchase","190504296","12/09/2018","Fleet Services","Fleet Management","R4000"
"Wolverhampton City Council","http://opendatacommunities.org/id/metropolitan-district-council/wolverhampton","705995","Oakley�S Limited","175263","3.33","Equipment - Purchase","190504296","12/09/2018","Fleet Services","Fleet Management","R4000"
"Wolverhampton City Council","http://opendatacommunities.org/id/metropolitan-district-council/wolverhampton","705995","Oakley�S Limited","175263","2.57","Equipment - Purchase","190504296","12/09/2018","Fleet Services","Fleet Management","R4000"
"Wolverhampton City Council","http://opendatacommunities.org/id/metropolitan-district-council/wolverhampton","705995","Oakley�S Limited","175263","4.50","Equipment - Purchase","190504296","12/09/2018","Fleet Services","Fleet Management","R4000"
"Wolverhampton City Council","http://opendatacommunities.org/id/metropolitan-district-council/wolverhampton","705995","Oakley�S Limited","175221","5.78","Equipment - Purchase","190505026","14/09/2018","Fleet Services","Fleet Management","R4000"
"Wolverhampton City Council","http://opendatacommunities.org/id/metropolitan-district-council/wolverhampton","705995","Oakley�S Limited","175221","78.65","Equipment - Purchase","190505026","14/09/2018","Fleet Services","Fleet Management","R4000"
"Wolverhampton City Council","http://opendatacommunities.org/id/metropolitan-district-council/wolverhampton","705995","Oakley�S Limited","175221","4.19","Equipment - Purchase","190505026","14/09/2018","Fleet Services","Fleet Management","R4000"
"Wolverhampton City Council","http://opendatacommunities.org/id/metropolitan-district-council/wolverhampton","705995","Oakley�S Limited","175221","3.15","Equipment - Purchase","190505026","14/09/2018","Fleet Services","Fleet Management","R4000"
"Wolverhampton City Council","http://opendatacommunities.org/id/metropolitan-district-council/wolverhampton","705995","Oakley�S Limited","175221","2.09","Equipment - Purchase","190505026","14/09/2018","Fleet Services","Fleet Management","R4000"
"Wolverhampton City Council","http://opendatacommunities.org/id/metropolitan-district-council/wolverhampton","705995","Oakley�S Limited","175301","14.18","Equipment - Purchase","190505032","14/09/2018","Fleet Services","Fleet Management","R4000"
"Wolverhampton City Council","http://opendatacommunities.org/id/metropolitan-district-council/wolverhampton","705995","Oakley�S Limited","175261","15.19","Equipment - Purchase","190505030","14/09/2018","Fleet Services","Fleet Management","R4000"
"Wolverhampton City Council","http://opendatacommunities.org/id/metropolitan-district-council/wolverhampton","705995","Oakley�S Limited","175261","16.98","Equipment - Purchase","190505030","14/09/2018","Fleet Services","Fleet Management","R4000"
"Wolverhampton City Council","http://opendatacommunities.org/id/metropolitan-district-council/wolverhampton","705995","Oakley�S Limited","175261","6.78","Equipment - Purchase","190505030","14/09/2018","Fleet Services","Fleet Management","R4000"
"Wolverhampton City Council","http://opendatacommunities.org/id/metropolitan-district-council/wolverhampton","705995","Oakley�S Limited","175302","7.17","Equipment - Purchase","190505033","14/09/2018","Fleet Services","Fleet Management","R4000"
"Wolverhampton City Council","http://opendatacommunities.org/id/metropolitan-district-council/wolverhampton","705995","Oakley�S Limited","175302","6.94","Equipment - Purchase","190505033","14/09/2018","Fleet Services","Fleet Management","R4000"
"Wolverhampton City Council","http://opendatacommunities.org/id/metropolitan-district-council/wolverhampton","705995","Oakley�S Limited","175365","11.25","Equipment - Purchase","190502328","05/09/2018","Fleet Services","Fleet Management","R4000"
"Wolverhampton City Council","http://opendatacommunities.org/id/metropolitan-district-council/wolverhampton","705995","Oakley�S Limited","175260","290.52","Equipment - Purchase","190505029","14/09/2018","Fleet Services","Fleet Management","R4000"
"Wolverhampton City Council","http://opendatacommunities.org/id/metropolitan-district-council/wolverhampton","705995","Oakley�S Limited","175447","8.71","Equipment - Purchase","190505034","14/09/2018","Fleet Services","Fleet Management","R4000"
"Wolverhampton City Council","http://opendatacommunities.org/id/metropolitan-district-council/wolverhampton","705995","Oakley�S Limited","175447","8.50","Equipment - Purchase","190505034","14/09/2018","Fleet Services","Fleet Management","R4000"
"Wolverhampton City Council","http://opendatacommunities.org/id/metropolitan-district-council/wolverhampton","705995","Oakley�S Limited","175447","24.16","Equipment - Purchase","190505034","14/09/2018","Fleet Services","Fleet Management","R4000"
"Wolverhampton City Council","http://opendatacommunities.org/id/metropolitan-district-council/wolverhampton","705995","Oakley�S Limited","175448","11.24","Equipment - Purchase","190505035","14/09/2018","Fleet Services","Fleet Management","R4000"
"Wolverhampton City Council","http://opendatacommunities.org/id/metropolitan-district-council/wolverhampton","705995","Oakley�S Limited","175366","35.10","Equipment - Purchase","190502329","05/09/2018","Fleet Services","Fleet Management","R4000"
"Wolverhampton City Council","http://opendatacommunities.org/id/metropolitan-district-council/wolverhampton","705995","Oakley�S Limited","175366","1.04","Equipment - Purchase","190502329","05/09/2018","Fleet Services","Fleet Management","R4000"
"Wolverhampton City Council","http://opendatacommunities.org/id/metropolitan-district-council/wolverhampton","705995","Oakley�S Limited","175366","8.41","Equipment - Purchase","190502329","05/09/2018","Fleet Services","Fleet Management","R4000"
"Wolverhampton City Council","http://opendatacommunities.org/id/metropolitan-district-council/wolverhampton","706006","OCN (Open College Network) West Mids","31220","25.00","Exam Expenses (Non-Employee)","130229279","26/09/2018","Adult Education","Foundation Studies Delivery Area","R4630"
"Wolverhampton City Council","http://opendatacommunities.org/id/metropolitan-district-council/wolverhampton","706006","OCN (Open College Network) West Mids","31220","25.00","Exam Expenses (Non-Employee)","130229279","26/09/2018","Adult Education","24+ Advanced Learning Loan","R4630"
"Wolverhampton City Council","http://opendatacommunities.org/id/metropolitan-district-council/wolverhampton","706006","OCN (Open College Network) West Mids","32765","4,590.00","Exam Expenses (Non-Employee)","130223586","19/09/2018","Adult Education","Discretionary Fund","R4630"
"Wolverhampton City Council","http://opendatacommunities.org/id/metropolitan-district-council/wolverhampton","706006","OCN (Open College Network) West Mids","32762","50.00","Exam Expenses (Non-Employee)","130229280","26/09/2018","Adult Education","Foundation Studies Delivery Area","R4630"
"Wolverhampton City Council","http://opendatacommunities.org/id/metropolitan-district-council/wolverhampton","706006","OCN (Open College Network) West Mids","32762","50.00","Exam Expenses (Non-Employee)","130229280","26/09/2018","Adult Education","24+ Advanced Learning Loan","R4630"
"Wolverhampton City Council","http://opendatacommunities.org/id/metropolitan-district-council/wolverhampton","706006","OCN (Open College Network) West Mids","30524","150.00","Exam Expenses (Non-Employee)","130229278","26/09/2018","Adult Education","Foundation Studies Delivery Area","R4630"
"Wolverhampton City Council","http://opendatacommunities.org/id/metropolitan-district-council/wolverhampton","706006","OCN (Open College Network) West Mids","30524","150.00","Exam Expenses (Non-Employee)","130229278","26/09/2018","Adult Education","24+ Advanced Learning Loan","R4630"
"Wolverhampton City Council","http://opendatacommunities.org/id/metropolitan-district-council/wolverhampton","706006","OCN (Open College Network) West Mids","32763","100.00","Exam Expenses (Non-Employee)","130229281","26/09/2018","Adult Education","Foundation Studies Delivery Area","R4630"
"Wolverhampton City Council","http://opendatacommunities.org/id/metropolitan-district-council/wolverhampton","706006","OCN (Open College Network) West Mids","32763","100.00","Exam Expenses (Non-Employee)","130229281","26/09/2018","Adult Education","24+ Advanced Learning Loan","R4630"
"Wolverhampton City Council","http://opendatacommunities.org/id/metropolitan-district-council/wolverhampton","706007","OCR (Cambridge)","101098337","712.00","Exam Expenses (Non-Employee)","130226544","19/09/2018","Adult Education","Discretionary Fund","R4630"
"Wolverhampton City Council","http://opendatacommunities.org/id/metropolitan-district-council/wolverhampton","706007","OCR (Cambridge)","101098336","173.10","Exam Expenses (Non-Employee)","130226543","19/09/2018","Adult Education","Discretionary Fund","R4630"
"Wolverhampton City Council","http://opendatacommunities.org/id/metropolitan-district-council/wolverhampton","706030","Old Fallings Playgroup","TFT Autumn 2018 Inst 1","3,930.00","TPP - Private Nursery Education Funding","190508160","19/09/2018","Early Years","Early Years Entitlement Funding for Disadvantaged 2 Year Olds","R5035"
"Wolverhampton City Council","http://opendatacommunities.org/id/metropolitan-district-council/wolverhampton","706030","Old Fallings Playgroup","NEF Autumn 2018 INST 1","63.75","TPP - Private Nursery Education Funding","190508148","19/09/2018","Early Years","Early Years Universal Entitlement for 3 and 4 Year Olds","R5035"
"Wolverhampton City Council","http://opendatacommunities.org/id/metropolitan-district-council/wolverhampton","706047","Online Leisure Systems Limited","6959","69.00","Stationery","130227050","26/09/2018","Local Economy","Blakenhall Community & Healthy Living Centre","R4308"
"Wolverhampton City Council","http://opendatacommunities.org/id/metropolitan-district-council/wolverhampton","706051","OOSHA Limited","513758","119.98","Comms - Telephone Rental","130227582","26/09/2018","Visitor Economy","Box Office Administration","R4504"
"Wolverhampton City Council","http://opendatacommunities.org/id/metropolitan-district-council/wolverhampton","706064","Opus Energy Limited","64885775","12.57","Electricity","190504686","14/09/2018","Corporate Asset Management","Central Utilities to Recharge","R2100"
"Wolverhampton City Council","http://opendatacommunities.org/id/metropolitan-district-council/wolverhampton","706064","Opus Energy Limited","23551277","50.79","Gas","190504687","14/09/2018","Estates and Valuations","Shops ; Other","R2101"
"Wolverhampton City Council","http://opendatacommunities.org/id/metropolitan-district-council/wolverhampton","706064","Opus Energy Limited","64707119","12.57","Electricity","190504685","14/09/2018","Corporate Asset Management","Central Utilities to Recharge","R2100"
"Wolverhampton City Council","http://opendatacommunities.org/id/metropolitan-district-council/wolverhampton","706064","Opus Energy Limited","64737147","118.73","Electricity","190504684","14/09/2018","Estates and Valuations","I10 Rental Income","R2100"
"Wolverhampton City Council","http://opendatacommunities.org/id/metropolitan-district-council/wolverhampton","706068","EE Limited","126292257","30,810.00","Comms - Mobile Telephones","130222024","14/09/2018","ICTS","Strategic ICTS (ICT Service Budget)","R4507"
"Wolverhampton City Council","http://opendatacommunities.org/id/metropolitan-district-council/wolverhampton","706068","EE Limited","64818157","-50.00","Comms - Mobile Telephones","130220276","14/09/2018","ICTS","Strategic ICTS (ICT Service Budget)","R4507"
"Wolverhampton City Council","http://opendatacommunities.org/id/metropolitan-district-council/wolverhampton","706068","EE Limited","126267245","460.00","Comms - Mobile Telephones","130216241","05/09/2018","ICTS","Strategic ICTS (ICT Service Budget)","R4507"
"Wolverhampton City Council","http://opendatacommunities.org/id/metropolitan-district-council/wolverhampton","706068","EE Limited","126259469","130.00","Comms - Mobile Telephones","130214806","05/09/2018","ICTS","Strategic ICTS (ICT Service Budget)","R4507"
"Wolverhampton City Council","http://opendatacommunities.org/id/metropolitan-district-council/wolverhampton","706068","EE Limited","126268020","1,054.00","Comms - Mobile Telephones","130216498","05/09/2018","ICTS","Strategic ICTS (ICT Service Budget)","R4507"
"Wolverhampton City Council","http://opendatacommunities.org/id/metropolitan-district-council/wolverhampton","706068","EE Limited","01276599748","6,702.69","Comms - Mobile Telephones","130229678","28/09/2018","ICTS","Strategic ICTS (ICT Service Budget)","R4507"
"Wolverhampton City Council","http://opendatacommunities.org/id/metropolitan-district-council/wolverhampton","706068","EE Limited","126305010","585.00","Comms - Mobile Telephones","130224294","14/09/2018","ICTS","Strategic ICTS (ICT Service Budget)","R4507"
"Wolverhampton City Council","http://opendatacommunities.org/id/metropolitan-district-council/wolverhampton","706068","EE Limited","126269320","4,810.00","Comms - Mobile Telephones","130218273","14/09/2018","ICTS","Strategic ICTS (ICT Service Budget)","R4507"
"Wolverhampton City Council","http://opendatacommunities.org/id/metropolitan-district-council/wolverhampton","706068","EE Limited","126256828","84.00","Comms - Mobile Telephones","130215255","05/09/2018","ICTS","Strategic ICTS (ICT Service Budget)","R4507"
"Wolverhampton City Council","http://opendatacommunities.org/id/metropolitan-district-council/wolverhampton","706068","EE Limited","126253390","130.00","Comms - Mobile Telephones","130214145","05/09/2018","ICTS","Strategic ICTS (ICT Service Budget)","R4507"
"Wolverhampton City Council","http://opendatacommunities.org/id/metropolitan-district-council/wolverhampton","706068","EE Limited","126279311","7,020.00","Comms - Mobile Telephones","130220547","19/09/2018","ICTS","Strategic ICTS (ICT Service Budget)","R4507"
"Wolverhampton City Council","http://opendatacommunities.org/id/metropolitan-district-council/wolverhampton","706068","EE Limited","126289506","2,600.00","Comms - Mobile Telephones","130222023","07/09/2018","ICTS","Strategic ICTS (ICT Service Budget)","R4507"
"Wolverhampton City Council","http://opendatacommunities.org/id/metropolitan-district-council/wolverhampton","706068","EE Limited","01274494124","11,027.63","Comms - Mobile Telephones","130228965","21/09/2018","ICTS","Strategic ICTS (ICT Service Budget)","R4507"
"Wolverhampton City Council","http://opendatacommunities.org/id/metropolitan-district-council/wolverhampton","706068","EE Limited","126279312","5,980.00","Comms - Mobile Telephones","130220548","14/09/2018","ICTS","Strategic ICTS (ICT Service Budget)","R4507"
"Wolverhampton City Council","http://opendatacommunities.org/id/metropolitan-district-council/wolverhampton","706068","EE Limited","126215508 - credit correction","2,750.00","Comms - Mobile Telephones","130229240","26/09/2018","ICTS","Strategic ICTS (ICT Service Budget)","R4507"
"Wolverhampton City Council","http://opendatacommunities.org/id/metropolitan-district-council/wolverhampton","706068","EE Limited","01272278504","12.50","Comms - Mobile Telephones","130212489","05/09/2018","ICTS","Strategic ICTS (ICT Service Budget)","R4507"
"Wolverhampton City Council","http://opendatacommunities.org/id/metropolitan-district-council/wolverhampton","706068","EE Limited","01272278504","44.17","Comms - Mobile Telephones","130212489","05/09/2018","ICTS","Strategic ICTS (ICT Service Budget)","R4507"
"Wolverhampton City Council","http://opendatacommunities.org/id/metropolitan-district-council/wolverhampton","706068","EE Limited","126237380","2,140.00","Comms - Mobile Telephones","130212380","05/09/2018","ICTS","Strategic ICTS (ICT Service Budget)","R4507"
"Wolverhampton City Council","http://opendatacommunities.org/id/metropolitan-district-council/wolverhampton","706068","EE Limited","126274533","8,190.00","Comms - Mobile Telephones","130218381","19/09/2018","ICTS","Strategic ICTS (ICT Service Budget)","R4507"
"Wolverhampton City Council","http://opendatacommunities.org/id/metropolitan-district-council/wolverhampton","706068","EE Limited","126311391","82.50","Comms - Mobile Telephones","130224968","07/09/2018","ICTS","Strategic ICTS (ICT Service Budget)","R4507"
"Wolverhampton City Council","http://opendatacommunities.org/id/metropolitan-district-council/wolverhampton","706068","EE Limited","01276600004","5,833.98","Comms - Mobile Telephones","130228696","21/09/2018","ICTS","Strategic ICTS (ICT Service Budget)","R4507"
"Wolverhampton City Council","http://opendatacommunities.org/id/metropolitan-district-council/wolverhampton","706068","EE Limited","126303417","130.00","Comms - Mobile Telephones","130224771","14/09/2018","ICTS","Strategic ICTS (ICT Service Budget)","R4507"
"Wolverhampton City Council","http://opendatacommunities.org/id/metropolitan-district-council/wolverhampton","706068","EE Limited","126285322","585.00","Comms - Mobile Telephones","130219414","14/09/2018","ICTS","Strategic ICTS (ICT Service Budget)","R4507"
"Wolverhampton City Council","http://opendatacommunities.org/id/metropolitan-district-council/wolverhampton","706068","EE Limited","126254338","260.00","Comms - Mobile Telephones","130214146","05/09/2018","ICTS","Strategic ICTS (ICT Service Budget)","R4507"
"Wolverhampton City Council","http://opendatacommunities.org/id/metropolitan-district-council/wolverhampton","706068","EE Limited","126272146","-50.00","Comms - Mobile Telephones","130217362","05/09/2018","ICTS","Strategic ICTS (ICT Service Budget)","R4507"
"Wolverhampton City Council","http://opendatacommunities.org/id/metropolitan-district-council/wolverhampton","706079","Orchid Cellmark Limited","SRVINV134951","789.00","Services - Professional Fees","130229282","26/09/2018","Legal Services","Centralised External Legal Costs","R4400"
"Wolverhampton City Council","http://opendatacommunities.org/id/metropolitan-district-council/wolverhampton","706091","Ostrich Education Limited","WYMT0218","4,020.00","Services - Professional Fees","130228967","21/09/2018","School Planning & Resources","Music Support Team","R4400"
"Wolverhampton City Council","http://opendatacommunities.org/id/metropolitan-district-council/wolverhampton","706091","Ostrich Education Limited","WYMT0118","1,000.00","Equipment - Purchase","130228966","21/09/2018","School Planning & Resources","Music Support Team","R4000"
"Wolverhampton City Council","http://opendatacommunities.org/id/metropolitan-district-council/wolverhampton","706123","P A Turner","TFT Autumn 2018 Inst 1","8,017.20","TPP - Private Nursery Education Funding","190508160","19/09/2018","Early Years","Early Years Entitlement Funding for Disadvantaged 2 Year Olds","R5035"
"Wolverhampton City Council","http://opendatacommunities.org/id/metropolitan-district-council/wolverhampton","706123","P A Turner","NEF Autumn 2018 INST 1","22,044.25","TPP - Private Nursery Education Funding","190508148","19/09/2018","Early Years","Early Years Universal Entitlement for 3 and 4 Year Olds","R5035"
"Wolverhampton City Council","http://opendatacommunities.org/id/metropolitan-district-council/wolverhampton","706157","P.J. Arnold Limited","11986","5,771.00","R&M - Departmental planned (external)","130227051","26/09/2018","Adult Education","The Maltings","R2001"
"Wolverhampton City Council","http://opendatacommunities.org/id/metropolitan-district-council/wolverhampton","706198","Parkeon Limited","UK110496","10.00","Equipment - R & M","130226546","14/09/2018","Parking Services","St Peter�s Car Park","R4003"
"Wolverhampton City Council","http://opendatacommunities.org/id/metropolitan-district-council/wolverhampton","706198","Parkeon Limited","UK110495","772.94","Equipment - R & M","130226545","14/09/2018","Parking Services","Car Parks Operational Staff","R4003"
"Wolverhampton City Council","http://opendatacommunities.org/id/metropolitan-district-council/wolverhampton","706200","Parkfield Medical Practice","M2018Q115HL1IHCQ","225.00","TPP - Public Health Contracts","190504381","12/09/2018","Healthy Life Expectancy","Healthy Lifestyles","R5060"
"Wolverhampton City Council","http://opendatacommunities.org/id/metropolitan-district-council/wolverhampton","706200","Parkfield Medical Practice","M2018Q115HL2COMQ","2,150.00","TPP - Public Health Contracts","190504382","12/09/2018","Healthy Life Expectancy","Healthy Lifestyles","R5060"
"Wolverhampton City Council","http://opendatacommunities.org/id/metropolitan-district-council/wolverhampton","706240","PDE Waste Technologies Limited","PDE19591","797.01","Equipment - R & M","130228310","19/09/2018","Markets","Wolverhampton Indoor and Open Market","R4003"
"Wolverhampton City Council","http://opendatacommunities.org/id/metropolitan-district-council/wolverhampton","706240","PDE Waste Technologies Limited","PDE 19590","467.12","Equipment - R & M","130228309","19/09/2018","Markets","Bilston Market and Licensed Operations","R4003"
"Wolverhampton City Council","http://opendatacommunities.org/id/metropolitan-district-council/wolverhampton","706298","Penn Kids Day Nursery","TFT Autumn 2018 Inst 1","13,204.80","TPP - Private Nursery Education Funding","190508160","19/09/2018","Early Years","Early Years Entitlement Funding for Disadvantaged 2 Year Olds","R5035"
"Wolverhampton City Council","http://opendatacommunities.org/id/metropolitan-district-council/wolverhampton","706298","Penn Kids Day Nursery","NEF Autumn 2018 INST 1","26,275.38","TPP - Private Nursery Education Funding","190508148","19/09/2018","Early Years","Early Years Universal Entitlement for 3 and 4 Year Olds","R5035"
"Wolverhampton City Council","http://opendatacommunities.org/id/metropolitan-district-council/wolverhampton","706300","Penn News Limited","PNNEWS050","51.00","Books","130227712","12/09/2018","Local Economy","Penn Library","R4309"
"Wolverhampton City Council","http://opendatacommunities.org/id/metropolitan-district-council/wolverhampton","706300","Penn News Limited","PNNEWS051","63.75","Books","130229402","28/09/2018","Local Economy","Penn Library","R4309"
"Wolverhampton City Council","http://opendatacommunities.org/id/metropolitan-district-council/wolverhampton","706301","Penna PLC","566300","352.84","Services - Professional Fees","130229679","28/09/2018","Strategic Director People","Strategic Director People","R4400"
"Wolverhampton City Council","http://opendatacommunities.org/id/metropolitan-district-council/wolverhampton","706315","Permanent Futures Limited","224580","1,750.00","Agency Staff","130227227","19/09/2018","Corporate Communications","Insight and Performance","R1100"
"Wolverhampton City Council","http://opendatacommunities.org/id/metropolitan-district-council/wolverhampton","706315","Permanent Futures Limited","224662","1,400.00","Agency Staff","130227584","26/09/2018","Corporate Communications","Insight and Performance","R1100"
"Wolverhampton City Council","http://opendatacommunities.org/id/metropolitan-district-council/wolverhampton","706317","Perry Hall Academy","TFT Autumn 2018 Inst 1","10,299.74","TPP - Private Nursery Education Funding","190508160","19/09/2018","Early Years","Early Years Entitlement Funding for Disadvantaged 2 Year Olds","R5035"
"Wolverhampton City Council","http://opendatacommunities.org/id/metropolitan-district-council/wolverhampton","706317","Perry Hall Academy","SEN Mainstream Top Ups Summer Term 18 - Perry Hall Primary","8,419.81","Grant Payments","190501515","05/09/2018","Central Education","High Needs Top Up Academies","R4700"
"Wolverhampton City Council","http://opendatacommunities.org/id/metropolitan-district-council/wolverhampton","706328","Peter Littleford Limited","18(VB)","320.00","Direct Work With Children","130226548","19/09/2018","Looked After Children","Adoption Support Fund","R6310"
"Wolverhampton City Council","http://opendatacommunities.org/id/metropolitan-district-council/wolverhampton","706332","Peters Limited","1709833","409.50","Books","130227342","19/09/2018","Local Economy","Global Budgets","R4309"
"Wolverhampton City Council","http://opendatacommunities.org/id/metropolitan-district-council/wolverhampton","706332","Peters Limited","1712502","57.90","Books","130229205","26/09/2018","Local Economy","Global Budgets","R4309"
"Wolverhampton City Council","http://opendatacommunities.org/id/metropolitan-district-council/wolverhampton","706332","Peters Limited","0650119","-2,867.75","Equipment - Purchase","130227335","05/09/2018","Local Economy","Community Recreation Community Centre","R4000"
"Wolverhampton City Council","http://opendatacommunities.org/id/metropolitan-district-council/wolverhampton","706332","Peters Limited","1708581","31.37","Books","130226441","05/09/2018","Local Economy","Global Budgets","R4309"
"Wolverhampton City Council","http://opendatacommunities.org/id/metropolitan-district-council/wolverhampton","706332","Peters Limited","1706402","407.54","Books","130227338","12/09/2018","Local Economy","Global Budgets","R4309"
"Wolverhampton City Council","http://opendatacommunities.org/id/metropolitan-district-council/wolverhampton","706332","Peters Limited","1710657","22.30","Books","130228313","19/09/2018","Local Economy","Global Budgets","R4309"
"Wolverhampton City Council","http://opendatacommunities.org/id/metropolitan-district-council/wolverhampton","706332","Peters Limited","1711174","132.30","Books","130228315","26/09/2018","Local Economy","Global Budgets","R4309"
"Wolverhampton City Council","http://opendatacommunities.org/id/metropolitan-district-council/wolverhampton","706332","Peters Limited","0650123","2,816.75","Equipment - Purchase","130227336","05/09/2018","Local Economy","Community Recreation Community Centre","R4000"
"Wolverhampton City Council","http://opendatacommunities.org/id/metropolitan-district-council/wolverhampton","706332","Peters Limited","1709098","6.60","Books","130226842","05/09/2018","Local Economy","Global Budgets","R4309"
"Wolverhampton City Council","http://opendatacommunities.org/id/metropolitan-district-council/wolverhampton","706332","Peters Limited","1705294","1,248.20","Books","130227337","12/09/2018","Local Economy","Global Budgets","R4309"
"Wolverhampton City Council","http://opendatacommunities.org/id/metropolitan-district-council/wolverhampton","706332","Peters Limited","1707113","29.10","Books","130227341","05/09/2018","Local Economy","Global Budgets","R4309"
"Wolverhampton City Council","http://opendatacommunities.org/id/metropolitan-district-council/wolverhampton","706332","Peters Limited","1710655","37.60","Books","130228311","19/09/2018","Local Economy","Global Budgets","R4309"
"Wolverhampton City Council","http://opendatacommunities.org/id/metropolitan-district-council/wolverhampton","706332","Peters Limited","1706527","104.80","Books","130227340","12/09/2018","Local Economy","Global Budgets","R4309"
"Wolverhampton City Council","http://opendatacommunities.org/id/metropolitan-district-council/wolverhampton","706332","Peters Limited","1710656","126.00","Books","130228312","19/09/2018","Local Economy","Global Budgets","R4309"
"Wolverhampton City Council","http://opendatacommunities.org/id/metropolitan-district-council/wolverhampton","706332","Peters Limited","1712160","100.56","Books","130229070","26/09/2018","Local Economy","Global Budgets","R4309"
"Wolverhampton City Council","http://opendatacommunities.org/id/metropolitan-district-council/wolverhampton","706332","Peters Limited","1709883","393.25","Books","130227344","05/09/2018","Local Economy","Global Budgets","R4309"
"Wolverhampton City Council","http://opendatacommunities.org/id/metropolitan-district-council/wolverhampton","706332","Peters Limited","1709882","4.98","Books","130227343","05/09/2018","Local Economy","Global Budgets","R4309"
"Wolverhampton City Council","http://opendatacommunities.org/id/metropolitan-district-council/wolverhampton","706332","Peters Limited","1706518","28.52","Books","130227339","12/09/2018","Local Economy","Global Budgets","R4309"
"Wolverhampton City Council","http://opendatacommunities.org/id/metropolitan-district-council/wolverhampton","706332","Peters Limited","1710660","15.44","Books","130228314","14/09/2018","Local Economy","Global Budgets","R4309"
"Wolverhampton City Council","http://opendatacommunities.org/id/metropolitan-district-council/wolverhampton","706364","Phs Group PLC","INVOICEVALUEPAYMENTDUEBY","135.94","Contract Cleaning","130226965","07/09/2018","Facilities Management","Civic Centre","R2700"
"Wolverhampton City Council","http://opendatacommunities.org/id/metropolitan-district-council/wolverhampton","706364","Phs Group PLC","66040193","-2.14","Contract Cleaning","130227714","19/09/2018","Facilities Management","Civic Centre","R2700"
"Wolverhampton City Council","http://opendatacommunities.org/id/metropolitan-district-council/wolverhampton","706364","Phs Group PLC","65952958","18.72","Contract Cleaning","130227713","12/09/2018","Bereavement Services","Crematorium","R2700"
"Wolverhampton City Council","http://opendatacommunities.org/id/metropolitan-district-council/wolverhampton","706409","Playdays wolverhampton limited","NEF Autumn 2018 INST 1","22,284.70","TPP - Private Nursery Education Funding","190508148","19/09/2018","Early Years","Early Years Universal Entitlement for 3 and 4 Year Olds","R5035"
"Wolverhampton City Council","http://opendatacommunities.org/id/metropolitan-district-council/wolverhampton","706409","Playdays wolverhampton limited","TFT Autumn 2018 Inst 1","1,273.32","TPP - Private Nursery Education Funding","190508160","19/09/2018","Early Years","Early Years Entitlement Funding for Disadvantaged 2 Year Olds","R5035"
"Wolverhampton City Council","http://opendatacommunities.org/id/metropolitan-district-council/wolverhampton","706417","Plexus Law","04385360","1,447.83","Insurance - General","130220554","28/09/2018","Audit Services","Legal Liability","R4962"
"Wolverhampton City Council","http://opendatacommunities.org/id/metropolitan-district-council/wolverhampton","706417","Plexus Law","04385360","402.17","Insurance - General","130220554","28/09/2018","Audit Services","Legal Liability","R4962"
"Wolverhampton City Council","http://opendatacommunities.org/id/metropolitan-district-council/wolverhampton","706417","Plexus Law","04395562","1,003.50","Insurance - General","130224776","14/09/2018","Audit Services","Legal Liability","R4962"
"Wolverhampton City Council","http://opendatacommunities.org/id/metropolitan-district-council/wolverhampton","706417","Plexus Law","04397594","233.33","Insurance - General","130225716","05/09/2018","Audit Services","Legal Liability","R4962"
"Wolverhampton City Council","http://opendatacommunities.org/id/metropolitan-district-council/wolverhampton","706417","Plexus Law","04397594","116.67","Insurance - General","130225716","05/09/2018","Audit Services","Legal Liability","R4962"
"Wolverhampton City Council","http://opendatacommunities.org/id/metropolitan-district-council/wolverhampton","706417","Plexus Law","04399860","3,197.00","Insurance - General","130227345","12/09/2018","Audit Services","Legal Liability","R4962"
"Wolverhampton City Council","http://opendatacommunities.org/id/metropolitan-district-council/wolverhampton","706417","Plexus Law","04399860","150.00","Insurance - General","130227345","12/09/2018","Audit Services","Legal Liability","R4962"
"Wolverhampton City Council","http://opendatacommunities.org/id/metropolitan-district-council/wolverhampton","706436","Pony Express UK Limited","My ref: TP10403/ER Your ref: 106869","35.00","Insurance - General","190510445","26/09/2018","Audit Services","Legal Liability","R4962"
"Wolverhampton City Council","http://opendatacommunities.org/id/metropolitan-district-council/wolverhampton","706439","Portakabin Limited","900822757","86.67","Room Hire","130227350","26/09/2018","Facilities Management","Culwell Street Depot","R2201"
"Wolverhampton City Council","http://opendatacommunities.org/id/metropolitan-district-council/wolverhampton","706439","Portakabin Limited","900822758","272.97","Equipment - Hire","130228839","26/09/2018","Transportation","Passenger Transport - General","R4001"
"Wolverhampton City Council","http://opendatacommunities.org/id/metropolitan-district-council/wolverhampton","706439","Portakabin Limited","900822754","128.72","Room Hire","130227347","26/09/2018","Facilities Management","Hickman Avenue Depot","R2201"
"Wolverhampton City Council","http://opendatacommunities.org/id/metropolitan-district-council/wolverhampton","706439","Portakabin Limited","900822756","386.75","Room Hire","130227349","26/09/2018","Facilities Management","Hickman Avenue Depot","R2201"
"Wolverhampton City Council","http://opendatacommunities.org/id/metropolitan-district-council/wolverhampton","706439","Portakabin Limited","900822759","108.33","Room Hire","130227351","26/09/2018","Markets","Wholesale Market Facilities Management","R2201"
"Wolverhampton City Council","http://opendatacommunities.org/id/metropolitan-district-council/wolverhampton","706439","Portakabin Limited","900819767","272.97","Equipment - Hire","130228838","21/09/2018","Transportation","Passenger Transport - General","R4001"
"Wolverhampton City Council","http://opendatacommunities.org/id/metropolitan-district-council/wolverhampton","706439","Portakabin Limited","900822753","125.67","Room Hire","130227346","26/09/2018","Facilities Management","Hickman Avenue Depot","R2201"
"Wolverhampton City Council","http://opendatacommunities.org/id/metropolitan-district-council/wolverhampton","706439","Portakabin Limited","900822755","167.72","Room Hire","130227348","26/09/2018","Facilities Management","Hickman Avenue Depot","R2201"
"Wolverhampton City Council","http://opendatacommunities.org/id/metropolitan-district-council/wolverhampton","706453","Post Office Counters Limited","VEHICLE TAX SEPEMBER 2018","2,750.00","Road Fund Licence","190502601","07/09/2018","Fleet Services","Fleet Management","R3004"
"Wolverhampton City Council","http://opendatacommunities.org/id/metropolitan-district-council/wolverhampton","706454","Postage By Phone","81780629 - Invoice","700.00","Comms - Postage","130229176","21/09/2018","Adult Education","Service Wide","R4503"
"Wolverhampton City Council","http://opendatacommunities.org/id/metropolitan-district-council/wolverhampton","706456","Posturite Limited","INV0495566","119.16","Equipment - Purchase","130222351","05/09/2018","Safeguarding","Head of Service Quality and Safeguarding","R4000"
"Wolverhampton City Council","http://opendatacommunities.org/id/metropolitan-district-council/wolverhampton","706456","Posturite Limited","INV0588150","102.27","Computing - Purchase of Hardware","130228840","21/09/2018","Child Protection","Head of Service - CINCP","R4530"
"Wolverhampton City Council","http://opendatacommunities.org/id/metropolitan-district-council/wolverhampton","706456","Posturite Limited","INV0560016","80.79","Equipment - Purchase","130229075","21/09/2018","Central Corporate Budgets","Miscellaneous Corporate Costs","R4000"
"Wolverhampton City Council","http://opendatacommunities.org/id/metropolitan-district-council/wolverhampton","706457","Potclays Limited","Q1229","102.98","Equipment - Purchase","130228563","21/09/2018","Adult Education","Creative Studies Delivery Area","R4000"
"Wolverhampton City Council","http://opendatacommunities.org/id/metropolitan-district-council/wolverhampton","706457","Potclays Limited","Q3291","10.37","Equipment - R & M","130228564","21/09/2018","Adult Education","Creative Studies Delivery Area","R4003"
"Wolverhampton City Council","http://opendatacommunities.org/id/metropolitan-district-council/wolverhampton","706469","Kennet Water Ltd (Pollet Pool Group)","SI1804560_PUK","2,280.00","Materials","130225835","26/09/2018","Environmental Maintenance","Parks - Ranger Service","R4007"
"Wolverhampton City Council","http://opendatacommunities.org/id/metropolitan-district-council/wolverhampton","706469","Kennet Water Ltd (Pollet Pool Group)","SI1804560_PUK","462.00","Materials","130225835","26/09/2018","Environmental Maintenance","Parks - Ranger Service","R4007"
"Wolverhampton City Council","http://opendatacommunities.org/id/metropolitan-district-council/wolverhampton","706469","Kennet Water Ltd (Pollet Pool Group)","SI1804560_PUK","484.00","Materials","130225835","26/09/2018","Environmental Maintenance","Parks - Ranger Service","R4007"
"Wolverhampton City Council","http://opendatacommunities.org/id/metropolitan-district-council/wolverhampton","706469","Kennet Water Ltd (Pollet Pool Group)","SI1804560_PUK","7.25","Materials","130225835","26/09/2018","Environmental Maintenance","Parks - Ranger Service","R4007"
"Wolverhampton City Council","http://opendatacommunities.org/id/metropolitan-district-council/wolverhampton","706469","Kennet Water Ltd (Pollet Pool Group)","SI1803253_PUK","5,740.60","Materials","130220280","12/09/2018","Environmental Maintenance","Parks - Ranger Service","R4007"
"Wolverhampton City Council","http://opendatacommunities.org/id/metropolitan-district-council/wolverhampton","706469","Kennet Water Ltd (Pollet Pool Group)","SI1804817_PUK","123.50","Equipment - Purchase","130226550","19/09/2018","Environmental Maintenance","Parks - Ranger Service","R4000"
"Wolverhampton City Council","http://opendatacommunities.org/id/metropolitan-district-council/wolverhampton","706469","Kennet Water Ltd (Pollet Pool Group)","SI1804817_PUK","16.80","Equipment - Purchase","130226550","19/09/2018","Environmental Maintenance","Parks - Ranger Service","R4000"
"Wolverhampton City Council","http://opendatacommunities.org/id/metropolitan-district-council/wolverhampton","706469","Kennet Water Ltd (Pollet Pool Group)","SI1804817_PUK","13.95","Comms - Postage","130226550","19/09/2018","Environmental Maintenance","Parks - Ranger Service","R4503"
"Wolverhampton City Council","http://opendatacommunities.org/id/metropolitan-district-council/wolverhampton","706469","Kennet Water Ltd (Pollet Pool Group)","SI1803832_PUK","519.25","Materials","130222903","26/09/2018","Environmental Maintenance","Parks - Ranger Service","R4007"
"Wolverhampton City Council","http://opendatacommunities.org/id/metropolitan-district-council/wolverhampton","706469","Kennet Water Ltd (Pollet Pool Group)","SI1804520_PUK","2,829.35","Materials","130225717","05/09/2018","Environmental Maintenance","Parks - Ranger Service","R4007"
"Wolverhampton City Council","http://opendatacommunities.org/id/metropolitan-district-council/wolverhampton","706476","Precise Media Monitoring Limited","467834","2,600.00","Marketing \ Non-staff advertising","130228042","19/09/2018","Visitor Economy","Visitor Economy - Development","R4317"
"Wolverhampton City Council","http://opendatacommunities.org/id/metropolitan-district-council/wolverhampton","706486","Premier Paper Group Limited","9397157","941.00","Stationery","130225601","05/09/2018","ICTS","Document Centre - General","R4308"
"Wolverhampton City Council","http://opendatacommunities.org/id/metropolitan-district-council/wolverhampton","706486","Premier Paper Group Limited","9397158","822.00","Stationery","130225602","05/09/2018","ICTS","Document Centre - General","R4308"
"Wolverhampton City Council","http://opendatacommunities.org/id/metropolitan-district-council/wolverhampton","706486","Premier Paper Group Limited","9410417","822.00","Stationery","130226444","14/09/2018","ICTS","Document Centre - General","R4308"
"Wolverhampton City Council","http://opendatacommunities.org/id/metropolitan-district-council/wolverhampton","706486","Premier Paper Group Limited","9420348","822.00","Stationery","130227054","26/09/2018","ICTS","Document Centre - General","R4308"
"Wolverhampton City Council","http://opendatacommunities.org/id/metropolitan-district-council/wolverhampton","706486","Premier Paper Group Limited","9413974","61.02","Stationery","130226685","19/09/2018","Special Educational Needs","SEN Special Education Admin","R4308"
"Wolverhampton City Council","http://opendatacommunities.org/id/metropolitan-district-council/wolverhampton","706486","Premier Paper Group Limited","9404524","822.00","Stationery","130226143","12/09/2018","ICTS","Document Centre - General","R4308"
"Wolverhampton City Council","http://opendatacommunities.org/id/metropolitan-district-council/wolverhampton","706486","Premier Paper Group Limited","9394179","489.00","Stationery","130225309","05/09/2018","ICTS","Document Centre - General","R4308"
"Wolverhampton City Council","http://opendatacommunities.org/id/metropolitan-district-council/wolverhampton","706486","Premier Paper Group Limited","9401032","822.00","Stationery","130225836","07/09/2018","ICTS","Document Centre - General","R4308"
"Wolverhampton City Council","http://opendatacommunities.org/id/metropolitan-district-council/wolverhampton","706486","Premier Paper Group Limited","9414153","822.00","Stationery","130226686","19/09/2018","ICTS","Document Centre - General","R4308"
"Wolverhampton City Council","http://opendatacommunities.org/id/metropolitan-district-council/wolverhampton","706505","Price Waterhouse Coopers","1354986554","1,500.00","Services - Consultants","130227834","26/09/2018","Strategic Finance","Strategic Finance","R4404"
"Wolverhampton City Council","http://opendatacommunities.org/id/metropolitan-district-council/wolverhampton","706541","Pro2Col Limited","23884","1,991.95","Computing - Purchase of Software","130226844","19/09/2018","ICTS","Strategic ICTS (ICT Service Budget)","R4531"
"Wolverhampton City Council","http://opendatacommunities.org/id/metropolitan-district-council/wolverhampton","706551","Professional Fencing Limited/Ta Profence","12454","330.00","R&M - Departmental response (external)","130227228","14/09/2018","Environmental Maintenance","Parks - East Area Management","R2003"
"Wolverhampton City Council","http://opendatacommunities.org/id/metropolitan-district-council/wolverhampton","706576","Prospects Services","063912","5,152.41","Computing - Licences","130227055","05/09/2018","Skills","Connexions Contract","R4535"
"Wolverhampton City Council","http://opendatacommunities.org/id/metropolitan-district-council/wolverhampton","706578","Protec Fire Detection PLC","A09HB4","132.00","Fixtures and Fittings - R&M","130226144","12/09/2018","Facilities Management","Civic Centre","R2502"
"Wolverhampton City Council","http://opendatacommunities.org/id/metropolitan-district-council/wolverhampton","706578","Protec Fire Detection PLC","AO9JK4","120.30","Fixtures and Fittings - R&M","130226445","12/09/2018","Facilities Management","Civic Centre","R2502"
"Wolverhampton City Council","http://opendatacommunities.org/id/metropolitan-district-council/wolverhampton","706607","Purchase Power Pitney Bowes","BF781205","431.45","Comms - Postage","130227683","19/09/2018","Youth Offending","Youth Offending Team","R4503"
"Wolverhampton City Council","http://opendatacommunities.org/id/metropolitan-district-council/wolverhampton","706607","Purchase Power Pitney Bowes","29497656","708.45","Comms - Postage","130227682","07/09/2018","Youth Offending","Youth Offending Team","R4503"
"Wolverhampton City Council","http://opendatacommunities.org/id/metropolitan-district-council/wolverhampton","706607","Purchase Power Pitney Bowes","BF793631","7,005.85","Comms - Postage","130227400","05/09/2018","ICTS","Postal Franker","R4503"
"Wolverhampton City Council","http://opendatacommunities.org/id/metropolitan-district-council/wolverhampton","706620","QAS Limited T/A Experian Qas","HEX54000638654","10,759.84","Computing - Purchase of Software","130228566","19/09/2018","Corporate Communications","Insight and Performance","R4531"
"Wolverhampton City Council","http://opendatacommunities.org/id/metropolitan-district-council/wolverhampton","706620","QAS Limited T/A Experian Qas","HEX49000650255","6.66","Equipment - Purchase","130227229","12/09/2018","Visitor Economy","Archives","R4000"
"Wolverhampton City Council","http://opendatacommunities.org/id/metropolitan-district-council/wolverhampton","706620","QAS Limited T/A Experian Qas","HEX49000650255","99.00","Equipment - Purchase","130227229","12/09/2018","Visitor Economy","Archives","R4000"
"Wolverhampton City Council","http://opendatacommunities.org/id/metropolitan-district-council/wolverhampton","706631","Quality Office Supplies Limited","SINV01233185","3,110.00","Plant, Equipment, Machinery & Computer Hardware","130227353","12/09/2018","-","Primary Expansion Programme","C3000"
"Wolverhampton City Council","http://opendatacommunities.org/id/metropolitan-district-council/wolverhampton","706631","Quality Office Supplies Limited","SINV01233184","6,400.00","Plant, Equipment, Machinery & Computer Hardware","130227352","12/09/2018","-","Primary Expansion Programme","C3000"
"Wolverhampton City Council","http://opendatacommunities.org/id/metropolitan-district-council/wolverhampton","706631","Quality Office Supplies Limited","SINV01233186","8,651.63","Plant, Equipment, Machinery & Computer Hardware","130227354","12/09/2018","-","Primary Expansion Programme","C3000"
"Wolverhampton City Council","http://opendatacommunities.org/id/metropolitan-district-council/wolverhampton","706649","R A Port & Associates","2175-18","69.40","Services - Professional Fees","130226847","12/09/2018","Legal Services","Centralised External Legal Costs","R4400"
"Wolverhampton City Council","http://opendatacommunities.org/id/metropolitan-district-council/wolverhampton","706649","R A Port & Associates","2184-18","49.25","Services - Professional Fees","130226848","12/09/2018","Legal Services","Centralised External Legal Costs","R4400"
"Wolverhampton City Council","http://opendatacommunities.org/id/metropolitan-district-council/wolverhampton","706649","R A Port & Associates","2183-18","63.05","Services - Professional Fees","130226358","12/09/2018","Legal Services","Centralised External Legal Costs","R4400"
"Wolverhampton City Council","http://opendatacommunities.org/id/metropolitan-district-council/wolverhampton","706649","R A Port & Associates","2203-18","197.70","Services - Professional Fees","130228843","26/09/2018","Legal Services","Centralised External Legal Costs","R4400"
"Wolverhampton City Council","http://opendatacommunities.org/id/metropolitan-district-council/wolverhampton","706649","R A Port & Associates","2201-18","68.50","Services - Professional Fees","130228567","26/09/2018","Legal Services","Centralised External Legal Costs","R4400"
"Wolverhampton City Council","http://opendatacommunities.org/id/metropolitan-district-council/wolverhampton","706649","R A Port & Associates","2187-18","63.50","Services - Professional Fees","130226849","12/09/2018","Legal Services","Centralised External Legal Costs","R4400"
"Wolverhampton City Council","http://opendatacommunities.org/id/metropolitan-district-council/wolverhampton","706649","R A Port & Associates","2177-18","79.40","Services - Professional Fees","130226967","12/09/2018","Legal Services","Centralised External Legal Costs","R4400"
"Wolverhampton City Council","http://opendatacommunities.org/id/metropolitan-district-council/wolverhampton","706649","R A Port & Associates","2198-18","62.15","Services - Professional Fees","130228167","26/09/2018","Legal Services","Centralised External Legal Costs","R4400"
"Wolverhampton City Council","http://opendatacommunities.org/id/metropolitan-district-council/wolverhampton","706649","R A Port & Associates","2186-18","65.75","Services - Professional Fees","130226552","12/09/2018","Legal Services","Centralised External Legal Costs","R4400"
"Wolverhampton City Council","http://opendatacommunities.org/id/metropolitan-district-council/wolverhampton","706649","R A Port & Associates","2185-18","91.25","Services - Professional Fees","130226551","12/09/2018","Legal Services","Centralised External Legal Costs","R4400"
"Wolverhampton City Council","http://opendatacommunities.org/id/metropolitan-district-council/wolverhampton","706649","R A Port & Associates","2190-18","78.75","Services - Professional Fees","130226851","12/09/2018","Legal Services","Centralised External Legal Costs","R4400"
"Wolverhampton City Council","http://opendatacommunities.org/id/metropolitan-district-council/wolverhampton","706649","R A Port & Associates","2197-18","141.30","Services - Professional Fees","130227835","26/09/2018","Legal Services","Centralised External Legal Costs","R4400"
"Wolverhampton City Council","http://opendatacommunities.org/id/metropolitan-district-council/wolverhampton","706649","R A Port & Associates","2191-18","226.65","Services - Professional Fees","130228166","26/09/2018","Legal Services","Centralised External Legal Costs","R4400"
"Wolverhampton City Council","http://opendatacommunities.org/id/metropolitan-district-council/wolverhampton","706649","R A Port & Associates","2189-18","61.25","Services - Professional Fees","130226850","12/09/2018","Legal Services","Centralised External Legal Costs","R4400"
"Wolverhampton City Council","http://opendatacommunities.org/id/metropolitan-district-council/wolverhampton","706649","R A Port & Associates","2176-18","86.90","Services - Professional Fees","130226966","12/09/2018","Legal Services","Centralised External Legal Costs","R4400"
"Wolverhampton City Council","http://opendatacommunities.org/id/metropolitan-district-council/wolverhampton","706649","R A Port & Associates","2208-18","99.30","Services - Professional Fees","130229289","28/09/2018","Legal Services","Centralised External Legal Costs","R4400"
"Wolverhampton City Council","http://opendatacommunities.org/id/metropolitan-district-council/wolverhampton","706649","R A Port & Associates","2207-18","50.10","Services - Professional Fees","130229077","26/09/2018","Legal Services","Centralised External Legal Costs","R4400"
"Wolverhampton City Council","http://opendatacommunities.org/id/metropolitan-district-council/wolverhampton","706668","R S Recovery Limited","00-132689","120.00","Services - Professional Fees","190503185","07/09/2018","Fleet Services","Fleet Management","R4400"
"Wolverhampton City Council","http://opendatacommunities.org/id/metropolitan-district-council/wolverhampton","706677","R.D.Jukes & Co Limited","11777","32,917.96","Construction and Conversion","130227056","07/09/2018","-","Electrical Works","C1100"
"Wolverhampton City Council","http://opendatacommunities.org/id/metropolitan-district-council/wolverhampton","706683","R82 UK Limited","242065","6,788.80","Equipment - Purchase","130229079","26/09/2018","Older People Provider Services","ILS Stores","R4000"
"Wolverhampton City Council","http://opendatacommunities.org/id/metropolitan-district-council/wolverhampton","706683","R82 UK Limited","241705","3,160.00","Equipment - Purchase","130228317","21/09/2018","Older People Provider Services","ILS Stores","R4000"
"Wolverhampton City Council","http://opendatacommunities.org/id/metropolitan-district-council/wolverhampton","706683","R82 UK Limited","241326","130.00","Equipment - R & M","130228698","21/09/2018","Older People Provider Services","ILS Stores","R4003"
"Wolverhampton City Council","http://opendatacommunities.org/id/metropolitan-district-council/wolverhampton","706683","R82 UK Limited","242044","95.00","Equipment - Purchase","130229078","26/09/2018","Older People Provider Services","ILS Stores","R4000"
"Wolverhampton City Council","http://opendatacommunities.org/id/metropolitan-district-council/wolverhampton","706683","R82 UK Limited","242044","196.00","Equipment - Purchase","130229078","26/09/2018","Older People Provider Services","ILS Stores","R4000"
"Wolverhampton City Council","http://opendatacommunities.org/id/metropolitan-district-council/wolverhampton","706683","R82 UK Limited","242044","14.00","Equipment - Purchase","130229078","26/09/2018","Older People Provider Services","ILS Stores","R4000"
"Wolverhampton City Council","http://opendatacommunities.org/id/metropolitan-district-council/wolverhampton","706683","R82 UK Limited","241387","2,009.00","Equipment - Purchase","130227836","12/09/2018","Older People Provider Services","ILS Stores","R4000"
"Wolverhampton City Council","http://opendatacommunities.org/id/metropolitan-district-council/wolverhampton","706692","Rad Building Limited","16/0532/DFG","10,557.00","Grants paid out to other organisations","190507902","19/09/2018","-","Disabled Facilities Grants","C5011"
"Wolverhampton City Council","http://opendatacommunities.org/id/metropolitan-district-council/wolverhampton","706692","Rad Building Limited","17/0061/DFGa","3,000.00","Grants paid out to other organisations","190510721","26/09/2018","-","Disabled Facilities Grants","C5011"
"Wolverhampton City Council","http://opendatacommunities.org/id/metropolitan-district-council/wolverhampton","706697","Radis Community Care","0209201820180906","21.78","TPP - Home Care","190502843","07/09/2018","Older People Care Purchasing","OP Care Purchasing (Spot Placements)","R5420"
"Wolverhampton City Council","http://opendatacommunities.org/id/metropolitan-district-council/wolverhampton","706697","Radis Community Care","0209201820180906","29.04","TPP - Home Care","190502843","07/09/2018","Older People Care Purchasing","OP Care Purchasing (Spot Placements)","R5420"
"Wolverhampton City Council","http://opendatacommunities.org/id/metropolitan-district-council/wolverhampton","706697","Radis Community Care","0209201820180906","90.75","TPP - Home Care","190502843","07/09/2018","Older People Care Purchasing","OP Care Purchasing (Spot Placements)","R5420"
"Wolverhampton City Council","http://opendatacommunities.org/id/metropolitan-district-council/wolverhampton","706697","Radis Community Care","0209201820180906","275.88","TPP - Home Care","190502843","07/09/2018","Physical Disabilities Care Purchasing","PD Care Purchasing (Spot Placements)","R5420"
"Wolverhampton City Council","http://opendatacommunities.org/id/metropolitan-district-council/wolverhampton","706697","Radis Community Care","0209201820180906","286.77","TPP - Home Care","190502843","07/09/2018","Physical Disabilities Care Purchasing","PD Care Purchasing (Spot Placements)","R5420"
"Wolverhampton City Council","http://opendatacommunities.org/id/metropolitan-district-council/wolverhampton","706697","Radis Community Care","0209201820180906","101.64","TPP - Home Care","190502843","07/09/2018","Older People Care Purchasing","OP Care Purchasing (Spot Placements)","R5420"
"Wolverhampton City Council","http://opendatacommunities.org/id/metropolitan-district-council/wolverhampton","706697","Radis Community Care","0209201820180906","47.19","TPP - Home Care","190502843","07/09/2018","Older People Care Purchasing","OP Care Purchasing (Spot Placements)","R5420"
"Wolverhampton City Council","http://opendatacommunities.org/id/metropolitan-district-council/wolverhampton","706697","Radis Community Care","0209201820180906","134.31","TPP - Home Care","190502843","07/09/2018","Physical Disabilities Care Purchasing","PD Care Purchasing (Spot Placements)","R5420"
"Wolverhampton City Council","http://opendatacommunities.org/id/metropolitan-district-council/wolverhampton","706697","Radis Community Care","0209201820180906","156.09","TPP - Home Care","190502843","07/09/2018","Physical Disabilities Care Purchasing","PD Care Purchasing (Spot Placements)","R5420"
"Wolverhampton City Council","http://opendatacommunities.org/id/metropolitan-district-council/wolverhampton","706697","Radis Community Care","0209201820180906","47.19","TPP - Home Care","190502843","07/09/2018","Older People Care Purchasing","OP Care Purchasing (Spot Placements)","R5420"
"Wolverhampton City Council","http://opendatacommunities.org/id/metropolitan-district-council/wolverhampton","706697","Radis Community Care","0209201820180906","185.13","TPP - Home Care","190502843","07/09/2018","Physical Disabilities Care Purchasing","PD Care Purchasing (Spot Placements)","R5420"
"Wolverhampton City Council","http://opendatacommunities.org/id/metropolitan-district-council/wolverhampton","706697","Radis Community Care","0209201820180906","170.61","TPP - Home Care","190502843","07/09/2018","Physical Disabilities Care Purchasing","PD Care Purchasing (Spot Placements)","R5420"
"Wolverhampton City Council","http://opendatacommunities.org/id/metropolitan-district-council/wolverhampton","706697","Radis Community Care","0209201820180906","47.19","TPP - Home Care","190502843","07/09/2018","Older People Care Purchasing","OP Care Purchasing (Spot Placements)","R5420"
"Wolverhampton City Council","http://opendatacommunities.org/id/metropolitan-district-council/wolverhampton","706697","Radis Community Care","0209201820180906","156.09","TPP - Home Care","190502843","07/09/2018","Older People Care Purchasing","OP Care Purchasing (Spot Placements)","R5420"
"Wolverhampton City Council","http://opendatacommunities.org/id/metropolitan-district-council/wolverhampton","706697","Radis Community Care","0209201820180906","14.52","TPP - Home Care","190502843","07/09/2018","Older People Care Purchasing","OP Care Purchasing (Spot Placements)","R5420"
"Wolverhampton City Council","http://opendatacommunities.org/id/metropolitan-district-council/wolverhampton","706697","Radis Community Care","0209201820180906","98.01","TPP - Home Care","190502843","07/09/2018","Older People Care Purchasing","OP Care Purchasing (Spot Placements)","R5420"
"Wolverhampton City Council","http://opendatacommunities.org/id/metropolitan-district-council/wolverhampton","706697","Radis Community Care","0209201820180906","101.64","TPP - Home Care","190502843","07/09/2018","Older People Care Purchasing","OP Care Purchasing (Spot Placements)","R5420"
"Wolverhampton City Council","http://opendatacommunities.org/id/metropolitan-district-council/wolverhampton","706697","Radis Community Care","0209201820180906","47.19","TPP - Home Care","190502843","07/09/2018","Older People Care Purchasing","OP Care Purchasing (Spot Placements)","R5420"
"Wolverhampton City Council","http://opendatacommunities.org/id/metropolitan-district-council/wolverhampton","706697","Radis Community Care","0209201820180906","50.82","TPP - Home Care","190502843","07/09/2018","Older People Care Purchasing","OP Care Purchasing (Spot Placements)","R5420"
"Wolverhampton City Council","http://opendatacommunities.org/id/metropolitan-district-council/wolverhampton","706697","Radis Community Care","0209201820180906","101.64","TPP - Home Care","190502843","07/09/2018","Older People Care Purchasing","OP Care Purchasing (Spot Placements)","R5420"
"Wolverhampton City Council","http://opendatacommunities.org/id/metropolitan-district-council/wolverhampton","706697","Radis Community Care","0209201820180906","21.78","TPP - Home Care","190502843","07/09/2018","Physical Disabilities Care Purchasing","PD Care Purchasing (Spot Placements)","R5420"
"Wolverhampton City Council","http://opendatacommunities.org/id/metropolitan-district-council/wolverhampton","706697","Radis Community Care","0209201820180906","156.09","TPP - Home Care","190502843","07/09/2018","Physical Disabilities Care Purchasing","PD Care Purchasing (Spot Placements)","R5420"
"Wolverhampton City Council","http://opendatacommunities.org/id/metropolitan-district-council/wolverhampton","706697","Radis Community Care","0209201820180906","39.93","TPP - Home Care","190502843","07/09/2018","Older People Care Purchasing","OP Care Purchasing (Spot Placements)","R5420"
"Wolverhampton City Council","http://opendatacommunities.org/id/metropolitan-district-council/wolverhampton","706697","Radis Community Care","0209201820180906","79.86","TPP - Home Care","190502843","07/09/2018","Physical Disabilities Care Purchasing","PD Care Purchasing (Spot Placements)","R5420"
"Wolverhampton City Council","http://opendatacommunities.org/id/metropolitan-district-council/wolverhampton","706697","Radis Community Care","0209201820180906","76.23","TPP - Home Care","190502843","07/09/2018","Physical Disabilities Care Purchasing","PD Care Purchasing (Spot Placements)","R5420"
"Wolverhampton City Council","http://opendatacommunities.org/id/metropolitan-district-council/wolverhampton","706697","Radis Community Care","0209201820180906","32.67","TPP - Home Care","190502843","07/09/2018","Physical Disabilities Care Purchasing","PD Care Purchasing (Spot Placements)","R5420"
"Wolverhampton City Council","http://opendatacommunities.org/id/metropolitan-district-council/wolverhampton","706697","Radis Community Care","0209201820180906","217.80","TPP - Home Care","190502843","07/09/2018","Older People Care Purchasing","OP Care Purchasing (Spot Placements)","R5420"
"Wolverhampton City Council","http://opendatacommunities.org/id/metropolitan-district-council/wolverhampton","706697","Radis Community Care","0209201820180906","232.32","TPP - Home Care","190502843","07/09/2018","Older People Care Purchasing","OP Care Purchasing (Spot Placements)","R5420"
"Wolverhampton City Council","http://opendatacommunities.org/id/metropolitan-district-council/wolverhampton","706697","Radis Community Care","0209201820180906","228.69","TPP - Home Care","190502843","07/09/2018","Older People Care Purchasing","OP Care Purchasing (Spot Placements)","R5420"
"Wolverhampton City Council","http://opendatacommunities.org/id/metropolitan-district-council/wolverhampton","706697","Radis Community Care","0209201820180906","156.09","TPP - Home Care","190502843","07/09/2018","Older People Care Purchasing","OP Care Purchasing (Spot Placements)","R5420"
"Wolverhampton City Council","http://opendatacommunities.org/id/metropolitan-district-council/wolverhampton","706697","Radis Community Care","0209201820180906","101.64","TPP - Home Care","190502843","07/09/2018","Older People Care Purchasing","OP Care Purchasing (Spot Placements)","R5420"
"Wolverhampton City Council","http://opendatacommunities.org/id/metropolitan-district-council/wolverhampton","706697","Radis Community Care","0209201820180906","116.16","TPP - Home Care","190502843","07/09/2018","Older People Care Purchasing","OP Care Purchasing (Spot Placements)","R5420"
"Wolverhampton City Council","http://opendatacommunities.org/id/metropolitan-district-council/wolverhampton","706697","Radis Community Care","0209201820180906","108.90","TPP - Home Care","190502843","07/09/2018","Older People Care Purchasing","OP Care Purchasing (Spot Placements)","R5420"
"Wolverhampton City Council","http://opendatacommunities.org/id/metropolitan-district-council/wolverhampton","706697","Radis Community Care","0209201820180906","14.52","TPP - Home Care","190502843","07/09/2018","Physical Disabilities Care Purchasing","PD Care Purchasing (Spot Placements)","R5420"
"Wolverhampton City Council","http://opendatacommunities.org/id/metropolitan-district-council/wolverhampton","706697","Radis Community Care","0209201820180906","203.28","TPP - Home Care","190502843","07/09/2018","Older People Care Purchasing","OP Care Purchasing (Spot Placements)","R5420"
"Wolverhampton City Council","http://opendatacommunities.org/id/metropolitan-district-council/wolverhampton","706697","Radis Community Care","0209201820180906","105.27","TPP - Home Care","190502843","07/09/2018","Older People Care Purchasing","OP Care Purchasing (Spot Placements)","R5420"
"Wolverhampton City Council","http://opendatacommunities.org/id/metropolitan-district-council/wolverhampton","706697","Radis Community Care","0209201820180906","185.13","TPP - Home Care","190502843","07/09/2018","Older People Care Purchasing","OP Care Purchasing (Spot Placements)","R5420"
"Wolverhampton City Council","http://opendatacommunities.org/id/metropolitan-district-council/wolverhampton","706697","Radis Community Care","0209201820180906","181.50","TPP - Home Care","190502843","07/09/2018","Older People Care Purchasing","OP Care Purchasing (Spot Placements)","R5420"
"Wolverhampton City Council","http://opendatacommunities.org/id/metropolitan-district-council/wolverhampton","706697","Radis Community Care","0209201820180906","43.56","TPP - Home Care","190502843","07/09/2018","Older People Care Purchasing","OP Care Purchasing (Spot Placements)","R5420"
"Wolverhampton City Council","http://opendatacommunities.org/id/metropolitan-district-council/wolverhampton","706697","Radis Community Care","0209201820180906","159.72","TPP - Home Care","190502843","07/09/2018","Older People Care Purchasing","OP Care Purchasing (Spot Placements)","R5420"
"Wolverhampton City Council","http://opendatacommunities.org/id/metropolitan-district-council/wolverhampton","706697","Radis Community Care","0209201820180906","156.09","TPP - Home Care","190502843","07/09/2018","Older People Care Purchasing","OP Care Purchasing (Spot Placements)","R5420"
"Wolverhampton City Council","http://opendatacommunities.org/id/metropolitan-district-council/wolverhampton","706697","Radis Community Care","0209201820180906","90.75","TPP - Home Care","190502843","07/09/2018","Older People Care Purchasing","OP Care Purchasing (Spot Placements)","R5420"
"Wolverhampton City Council","http://opendatacommunities.org/id/metropolitan-district-council/wolverhampton","706697","Radis Community Care","0209201820180906","76.23","TPP - Home Care","190502843","07/09/2018","Older People Care Purchasing","OP Care Purchasing (Spot Placements)","R5420"
"Wolverhampton City Council","http://opendatacommunities.org/id/metropolitan-district-council/wolverhampton","706697","Radis Community Care","0209201820180906","94.38","TPP - Home Care","190502843","07/09/2018","Older People Care Purchasing","OP Care Purchasing (Spot Placements)","R5420"
"Wolverhampton City Council","http://opendatacommunities.org/id/metropolitan-district-council/wolverhampton","706697","Radis Community Care","0209201820180906","101.64","TPP - Home Care","190502843","07/09/2018","Older People Care Purchasing","OP Care Purchasing (Spot Placements)","R5420"
"Wolverhampton City Council","http://opendatacommunities.org/id/metropolitan-district-council/wolverhampton","706697","Radis Community Care","0209201820180906","98.01","TPP - Home Care","190502843","07/09/2018","Older People Care Purchasing","OP Care Purchasing (Spot Placements)","R5420"
"Wolverhampton City Council","http://opendatacommunities.org/id/metropolitan-district-council/wolverhampton","706697","Radis Community Care","0209201820180906","54.45","TPP - Home Care","190502843","07/09/2018","Older People Care Purchasing","OP Care Purchasing (Spot Placements)","R5420"
"Wolverhampton City Council","http://opendatacommunities.org/id/metropolitan-district-council/wolverhampton","706697","Radis Community Care","0209201820180906","199.65","TPP - Home Care","190502843","07/09/2018","Older People Care Purchasing","OP Care Purchasing (Spot Placements)","R5420"
"Wolverhampton City Council","http://opendatacommunities.org/id/metropolitan-district-council/wolverhampton","706697","Radis Community Care","0209201820180906","127.05","TPP - Home Care","190502843","07/09/2018","Older People Care Purchasing","OP Care Purchasing (Spot Placements)","R5420"
"Wolverhampton City Council","http://opendatacommunities.org/id/metropolitan-district-council/wolverhampton","706697","Radis Community Care","0209201820180906","36.30","TPP - Home Care","190502843","07/09/2018","Older People Care Purchasing","OP Care Purchasing (Spot Placements)","R5420"
"Wolverhampton City Council","http://opendatacommunities.org/id/metropolitan-district-council/wolverhampton","706697","Radis Community Care","0209201820180906","54.45","TPP - Home Care","190502843","07/09/2018","Older People Care Purchasing","OP Care Purchasing (Spot Placements)","R5420"
"Wolverhampton City Council","http://opendatacommunities.org/id/metropolitan-district-council/wolverhampton","706697","Radis Community Care","0209201820180906","47.19","TPP - Home Care","190502843","07/09/2018","Older People Care Purchasing","OP Care Purchasing (Spot Placements)","R5420"
"Wolverhampton City Council","http://opendatacommunities.org/id/metropolitan-district-council/wolverhampton","706697","Radis Community Care","0209201820180906","47.19","TPP - Home Care","190502843","07/09/2018","Older People Care Purchasing","OP Care Purchasing (Spot Placements)","R5420"
"Wolverhampton City Council","http://opendatacommunities.org/id/metropolitan-district-council/wolverhampton","706697","Radis Community Care","0209201820180906","50.82","TPP - Home Care","190502843","07/09/2018","Older People Care Purchasing","OP Care Purchasing (Spot Placements)","R5420"
"Wolverhampton City Council","http://opendatacommunities.org/id/metropolitan-district-council/wolverhampton","706697","Radis Community Care","0209201820180906","148.83","TPP - Home Care","190502843","07/09/2018","Older People Care Purchasing","OP Care Purchasing (Spot Placements)","R5420"
"Wolverhampton City Council","http://opendatacommunities.org/id/metropolitan-district-council/wolverhampton","706697","Radis Community Care","0209201820180906","243.21","TPP - Home Care","190502843","07/09/2018","Older People Care Purchasing","OP Care Purchasing (Spot Placements)","R5420"
"Wolverhampton City Council","http://opendatacommunities.org/id/metropolitan-district-council/wolverhampton","706697","Radis Community Care","0209201820180906","101.64","TPP - Home Care","190502843","07/09/2018","Older People Care Purchasing","OP Care Purchasing (Spot Placements)","R5420"
"Wolverhampton City Council","http://opendatacommunities.org/id/metropolitan-district-council/wolverhampton","706697","Radis Community Care","0209201820180906","141.57","TPP - Home Care","190502843","07/09/2018","Older People Care Purchasing","OP Care Purchasing (Spot Placements)","R5420"
"Wolverhampton City Council","http://opendatacommunities.org/id/metropolitan-district-council/wolverhampton","706697","Radis Community Care","0209201820180906","101.64","TPP - Home Care","190502843","07/09/2018","Older People Care Purchasing","OP Care Purchasing (Spot Placements)","R5420"
"Wolverhampton City Council","http://opendatacommunities.org/id/metropolitan-district-council/wolverhampton","706697","Radis Community Care","0209201820180906","177.87","TPP - Home Care","190502843","07/09/2018","Older People Care Purchasing","OP Care Purchasing (Spot Placements)","R5420"
"Wolverhampton City Council","http://opendatacommunities.org/id/metropolitan-district-council/wolverhampton","706697","Radis Community Care","0209201820180906","177.87","TPP - Home Care","190502843","07/09/2018","Older People Care Purchasing","OP Care Purchasing (Spot Placements)","R5420"
"Wolverhampton City Council","http://opendatacommunities.org/id/metropolitan-district-council/wolverhampton","706697","Radis Community Care","0209201820180906","76.23","TPP - Home Care","190502843","07/09/2018","Older People Care Purchasing","OP Care Purchasing (Spot Placements)","R5420"
"Wolverhampton City Council","http://opendatacommunities.org/id/metropolitan-district-council/wolverhampton","706697","Radis Community Care","0209201820180906","41.40","TPP - Carer Support Service","190502843","07/09/2018","Carer Support","CS Care Purchasing (Spot Placements)","R5421"
"Wolverhampton City Council","http://opendatacommunities.org/id/metropolitan-district-council/wolverhampton","706697","Radis Community Care","0209201820180906","83.49","TPP - Home Care","190502843","07/09/2018","Older People Care Purchasing","OP Care Purchasing (Spot Placements)","R5420"
"Wolverhampton City Council","http://opendatacommunities.org/id/metropolitan-district-council/wolverhampton","706697","Radis Community Care","0209201820180906","98.01","TPP - Home Care","190502843","07/09/2018","Older People Care Purchasing","OP Care Purchasing (Spot Placements)","R5420"
"Wolverhampton City Council","http://opendatacommunities.org/id/metropolitan-district-council/wolverhampton","706697","Radis Community Care","0209201820180906","29.04","TPP - Home Care","190502843","07/09/2018","Older People Care Purchasing","OP Care Purchasing (Spot Placements)","R5420"
"Wolverhampton City Council","http://opendatacommunities.org/id/metropolitan-district-council/wolverhampton","706697","Radis Community Care","0209201820180906","101.64","TPP - Home Care","190502843","07/09/2018","Older People Care Purchasing","OP Care Purchasing (Spot Placements)","R5420"
"Wolverhampton City Council","http://opendatacommunities.org/id/metropolitan-district-council/wolverhampton","706697","Radis Community Care","0209201820180906","101.64","TPP - Home Care","190502843","07/09/2018","Older People Care Purchasing","OP Care Purchasing (Spot Placements)","R5420"
"Wolverhampton City Council","http://opendatacommunities.org/id/metropolitan-district-council/wolverhampton","706697","Radis Community Care","0209201820180906","105.27","TPP - Home Care","190502843","07/09/2018","Older People Care Purchasing","OP Care Purchasing (Spot Placements)","R5420"
"Wolverhampton City Council","http://opendatacommunities.org/id/metropolitan-district-council/wolverhampton","706697","Radis Community Care","0209201820180906","82.80","TPP - Carer Support Service","190502843","07/09/2018","Carer Support","CS Care Purchasing (Spot Placements)","R5421"
"Wolverhampton City Council","http://opendatacommunities.org/id/metropolitan-district-council/wolverhampton","706697","Radis Community Care","0209201820180906","188.76","TPP - Home Care","190502843","07/09/2018","Older People Care Purchasing","OP Care Purchasing (Spot Placements)","R5420"
"Wolverhampton City Council","http://opendatacommunities.org/id/metropolitan-district-council/wolverhampton","706697","Radis Community Care","0209201820180906","192.39","TPP - Home Care","190502843","07/09/2018","Older People Care Purchasing","OP Care Purchasing (Spot Placements)","R5420"
"Wolverhampton City Council","http://opendatacommunities.org/id/metropolitan-district-council/wolverhampton","706697","Radis Community Care","0209201820180906","163.35","TPP - Home Care","190502843","07/09/2018","Older People Care Purchasing","OP Care Purchasing (Spot Placements)","R5420"
"Wolverhampton City Council","http://opendatacommunities.org/id/metropolitan-district-council/wolverhampton","706697","Radis Community Care","0209201820180906","206.91","TPP - Home Care","190502843","07/09/2018","Older People Care Purchasing","OP Care Purchasing (Spot Placements)","R5420"
"Wolverhampton City Council","http://opendatacommunities.org/id/metropolitan-district-council/wolverhampton","706697","Radis Community Care","0209201820180906","76.23","TPP - Home Care","190502843","07/09/2018","Older People Care Purchasing","OP Care Purchasing (Spot Placements)","R5420"
"Wolverhampton City Council","http://opendatacommunities.org/id/metropolitan-district-council/wolverhampton","706697","Radis Community Care","0209201820180906","41.40","TPP - Carer Support Service","190502843","07/09/2018","Carer Support","CS Care Purchasing (Spot Placements)","R5421"
"Wolverhampton City Council","http://opendatacommunities.org/id/metropolitan-district-council/wolverhampton","706697","Radis Community Care","0209201820180906","203.28","TPP - Home Care","190502843","07/09/2018","Older People Care Purchasing","OP Care Purchasing (Spot Placements)","R5420"
"Wolverhampton City Council","http://opendatacommunities.org/id/metropolitan-district-council/wolverhampton","706697","Radis Community Care","0209201820180906","41.40","TPP - Carer Support Service","190502843","07/09/2018","Carer Support","CS Care Purchasing (Spot Placements)","R5421"
"Wolverhampton City Council","http://opendatacommunities.org/id/metropolitan-district-council/wolverhampton","706697","Radis Community Care","0209201820180906","36.30","TPP - Home Care","190502843","07/09/2018","Older People Care Purchasing","OP Care Purchasing (Spot Placements)","R5420"
"Wolverhampton City Council","http://opendatacommunities.org/id/metropolitan-district-council/wolverhampton","706697","Radis Community Care","0209201820180906","36.30","TPP - Home Care","190502843","07/09/2018","Older People Care Purchasing","OP Care Purchasing (Spot Placements)","R5420"
"Wolverhampton City Council","http://opendatacommunities.org/id/metropolitan-district-council/wolverhampton","706697","Radis Community Care","0209201820180906","243.21","TPP - Home Care","190502843","07/09/2018","Older People Care Purchasing","OP Care Purchasing (Spot Placements)","R5420"
"Wolverhampton City Council","http://opendatacommunities.org/id/metropolitan-district-council/wolverhampton","706697","Radis Community Care","0209201820180906","98.01","TPP - Home Care","190502843","07/09/2018","Older People Care Purchasing","OP Care Purchasing (Spot Placements)","R5420"
"Wolverhampton City Council","http://opendatacommunities.org/id/metropolitan-district-council/wolverhampton","706697","Radis Community Care","0209201820180906","145.20","TPP - Home Care","190502843","07/09/2018","Older People Care Purchasing","OP Care Purchasing (Spot Placements)","R5420"
"Wolverhampton City Council","http://opendatacommunities.org/id/metropolitan-district-council/wolverhampton","706697","Radis Community Care","0209201820180906","79.86","TPP - Home Care","190502843","07/09/2018","Older People Care Purchasing","OP Care Purchasing (Spot Placements)","R5420"
"Wolverhampton City Council","http://opendatacommunities.org/id/metropolitan-district-council/wolverhampton","706697","Radis Community Care","0209201820180906","392.04","TPP - Home Care","190502843","07/09/2018","Older People Care Purchasing","OP Care Purchasing (Spot Placements)","R5420"
"Wolverhampton City Council","http://opendatacommunities.org/id/metropolitan-district-council/wolverhampton","706697","Radis Community Care","0209201820180906","72.60","TPP - Home Care","190502843","07/09/2018","Physical Disabilities Care Purchasing","PD Care Purchasing (Spot Placements)","R5420"
"Wolverhampton City Council","http://opendatacommunities.org/id/metropolitan-district-council/wolverhampton","706697","Radis Community Care","0209201820180906","65.34","TPP - Home Care","190502843","07/09/2018","Physical Disabilities Care Purchasing","PD Care Purchasing (Spot Placements)","R5420"
"Wolverhampton City Council","http://opendatacommunities.org/id/metropolitan-district-council/wolverhampton","706697","Radis Community Care","0209201820180906","254.10","TPP - Home Care","190502843","07/09/2018","Older People Care Purchasing","OP Care Purchasing (Spot Placements)","R5420"
"Wolverhampton City Council","http://opendatacommunities.org/id/metropolitan-district-council/wolverhampton","706697","Radis Community Care","0209201820180906","203.28","TPP - Home Care","190502843","07/09/2018","Older People Care Purchasing","OP Care Purchasing (Spot Placements)","R5420"
"Wolverhampton City Council","http://opendatacommunities.org/id/metropolitan-district-council/wolverhampton","706697","Radis Community Care","0209201820180906","101.64","TPP - Home Care","190502843","07/09/2018","Physical Disabilities Care Purchasing","PD Care Purchasing (Spot Placements)","R5420"
"Wolverhampton City Council","http://opendatacommunities.org/id/metropolitan-district-council/wolverhampton","706697","Radis Community Care","0209201820180906","101.64","TPP - Home Care","190502843","07/09/2018","Physical Disabilities Care Purchasing","PD Care Purchasing (Spot Placements)","R5420"
"Wolverhampton City Council","http://opendatacommunities.org/id/metropolitan-district-council/wolverhampton","706697","Radis Community Care","0209201820180906","196.02","TPP - Home Care","190502843","07/09/2018","Older People Care Purchasing","OP Care Purchasing (Spot Placements)","R5420"
"Wolverhampton City Council","http://opendatacommunities.org/id/metropolitan-district-council/wolverhampton","706697","Radis Community Care","0209201820180906","101.64","TPP - Home Care","190502843","07/09/2018","Older People Care Purchasing","OP Care Purchasing (Spot Placements)","R5420"
"Wolverhampton City Council","http://opendatacommunities.org/id/metropolitan-district-council/wolverhampton","706697","Radis Community Care","0209201820180906","101.64","TPP - Home Care","190502843","07/09/2018","Older People Care Purchasing","OP Care Purchasing (Spot Placements)","R5420"
"Wolverhampton City Council","http://opendatacommunities.org/id/metropolitan-district-council/wolverhampton","706697","Radis Community Care","0209201820180906","206.91","TPP - Home Care","190502843","07/09/2018","Older People Care Purchasing","OP Care Purchasing (Spot Placements)","R5420"
"Wolverhampton City Council","http://opendatacommunities.org/id/metropolitan-district-council/wolverhampton","706697","Radis Community Care","0209201820180906","112.53","TPP - Home Care","190502843","07/09/2018","Older People Care Purchasing","OP Care Purchasing (Spot Placements)","R5420"
"Wolverhampton City Council","http://opendatacommunities.org/id/metropolitan-district-council/wolverhampton","706697","Radis Community Care","0209201820180906","148.83","TPP - Home Care","190502843","07/09/2018","Older People Care Purchasing","OP Care Purchasing (Spot Placements)","R5420"
"Wolverhampton City Council","http://opendatacommunities.org/id/metropolitan-district-council/wolverhampton","706697","Radis Community Care","0209201820180906","101.64","TPP - Home Care","190502843","07/09/2018","Older People Care Purchasing","OP Care Purchasing (Spot Placements)","R5420"
"Wolverhampton City Council","http://opendatacommunities.org/id/metropolitan-district-council/wolverhampton","706697","Radis Community Care","0209201820180906","188.76","TPP - Home Care","190502843","07/09/2018","Older People Care Purchasing","OP Care Purchasing (Spot Placements)","R5420"
"Wolverhampton City Council","http://opendatacommunities.org/id/metropolitan-district-council/wolverhampton","706697","Radis Community Care","0209201820180906","50.82","TPP - Home Care","190502843","07/09/2018","Older People Care Purchasing","OP Care Purchasing (Spot Placements)","R5420"
"Wolverhampton City Council","http://opendatacommunities.org/id/metropolitan-district-council/wolverhampton","706697","Radis Community Care","0209201820180906","221.43","TPP - Home Care","190502843","07/09/2018","Older People Care Purchasing","OP Care Purchasing (Spot Placements)","R5420"
"Wolverhampton City Council","http://opendatacommunities.org/id/metropolitan-district-council/wolverhampton","706697","Radis Community Care","0209201820180906","145.20","TPP - Home Care","190502843","07/09/2018","Older People Care Purchasing","OP Care Purchasing (Spot Placements)","R5420"
"Wolverhampton City Council","http://opendatacommunities.org/id/metropolitan-district-council/wolverhampton","706697","Radis Community Care","0209201820180906","50.82","TPP - Home Care","190502843","07/09/2018","Older People Care Purchasing","OP Care Purchasing (Spot Placements)","R5420"
"Wolverhampton City Council","http://opendatacommunities.org/id/metropolitan-district-council/wolverhampton","706697","Radis Community Care","0209201820180906","192.39","TPP - Home Care","190502843","07/09/2018","Older People Care Purchasing","OP Care Purchasing (Spot Placements)","R5420"
"Wolverhampton City Council","http://opendatacommunities.org/id/metropolitan-district-council/wolverhampton","706697","Radis Community Care","0209201820180906","206.91","TPP - Home Care","190502843","07/09/2018","Older People Care Purchasing","OP Care Purchasing (Spot Placements)","R5420"
"Wolverhampton City Council","http://opendatacommunities.org/id/metropolitan-district-council/wolverhampton","706697","Radis Community Care","0209201820180906","54.45","TPP - Home Care","190502843","07/09/2018","Older People Care Purchasing","OP Care Purchasing (Spot Placements)","R5420"
"Wolverhampton City Council","http://opendatacommunities.org/id/metropolitan-district-council/wolverhampton","706697","Radis Community Care","0209201820180906","50.82","TPP - Home Care","190502843","07/09/2018","Physical Disabilities Care Purchasing","PD Care Purchasing (Spot Placements)","R5420"
"Wolverhampton City Council","http://opendatacommunities.org/id/metropolitan-district-council/wolverhampton","706697","Radis Community Care","0209201820180906","50.82","TPP - Home Care","190502843","07/09/2018","Physical Disabilities Care Purchasing","PD Care Purchasing (Spot Placements)","R5420"
"Wolverhampton City Council","http://opendatacommunities.org/id/metropolitan-district-council/wolverhampton","706697","Radis Community Care","0209201820180906","36.30","TPP - Home Care","190502843","07/09/2018","Physical Disabilities Care Purchasing","PD Care Purchasing (Spot Placements)","R5420"
"Wolverhampton City Council","http://opendatacommunities.org/id/metropolitan-district-council/wolverhampton","706697","Radis Community Care","0209201820180906","101.64","TPP - Home Care","190502843","07/09/2018","Older People Care Purchasing","OP Care Purchasing (Spot Placements)","R5420"
"Wolverhampton City Council","http://opendatacommunities.org/id/metropolitan-district-council/wolverhampton","706697","Radis Community Care","0209201820180906","188.76","TPP - Home Care","190502843","07/09/2018","Physical Disabilities Care Purchasing","PD Care Purchasing (Spot Placements)","R5420"
"Wolverhampton City Council","http://opendatacommunities.org/id/metropolitan-district-council/wolverhampton","706697","Radis Community Care","0209201820180906","177.87","TPP - Home Care","190502843","07/09/2018","Physical Disabilities Care Purchasing","PD Care Purchasing (Spot Placements)","R5420"
"Wolverhampton City Council","http://opendatacommunities.org/id/metropolitan-district-council/wolverhampton","706697","Radis Community Care","0209201820180906","221.43","TPP - Home Care","190502843","07/09/2018","Older People Care Purchasing","OP Care Purchasing (Spot Placements)","R5420"
"Wolverhampton City Council","http://opendatacommunities.org/id/metropolitan-district-council/wolverhampton","706697","Radis Community Care","0209201820180906","36.30","TPP - Home Care","190502843","07/09/2018","Older People Care Purchasing","OP Care Purchasing (Spot Placements)","R5420"
"Wolverhampton City Council","http://opendatacommunities.org/id/metropolitan-district-council/wolverhampton","706697","Radis Community Care","0209201820180906","439.23","TPP - Home Care","190502843","07/09/2018","Physical Disabilities Care Purchasing","PD Care Purchasing (Spot Placements)","R5420"
"Wolverhampton City Council","http://opendatacommunities.org/id/metropolitan-district-council/wolverhampton","706697","Radis Community Care","0209201820180906","442.86","TPP - Home Care","190502843","07/09/2018","Physical Disabilities Care Purchasing","PD Care Purchasing (Spot Placements)","R5420"
"Wolverhampton City Council","http://opendatacommunities.org/id/metropolitan-district-council/wolverhampton","706697","Radis Community Care","0209201820180906","79.86","TPP - Home Care","190502843","07/09/2018","Learning Disabilities Care Purchasing","LD Care Purchasing (Spot Placements)","R5420"
"Wolverhampton City Council","http://opendatacommunities.org/id/metropolitan-district-council/wolverhampton","706697","Radis Community Care","0209201820180906","228.69","TPP - Home Care","190502843","07/09/2018","Older People Care Purchasing","OP Care Purchasing (Spot Placements)","R5420"
"Wolverhampton City Council","http://opendatacommunities.org/id/metropolitan-district-council/wolverhampton","706697","Radis Community Care","0209201820180906","58.08","TPP - Home Care","190502843","07/09/2018","Older People Care Purchasing","OP Care Purchasing (Spot Placements)","R5420"
"Wolverhampton City Council","http://opendatacommunities.org/id/metropolitan-district-council/wolverhampton","706697","Radis Community Care","0209201820180906","174.24","TPP - Home Care","190502843","07/09/2018","Older People Care Purchasing","OP Care Purchasing (Spot Placements)","R5420"
"Wolverhampton City Council","http://opendatacommunities.org/id/metropolitan-district-council/wolverhampton","706697","Radis Community Care","0209201820180906","94.38","TPP - Home Care","190502843","07/09/2018","Older People Care Purchasing","OP Care Purchasing (Spot Placements)","R5420"
"Wolverhampton City Council","http://opendatacommunities.org/id/metropolitan-district-council/wolverhampton","706697","Radis Community Care","0209201820180906","232.32","TPP - Home Care","190502843","07/09/2018","Older People Care Purchasing","OP Care Purchasing (Spot Placements)","R5420"
"Wolverhampton City Council","http://opendatacommunities.org/id/metropolitan-district-council/wolverhampton","706697","Radis Community Care","0209201820180906","221.43","TPP - Home Care","190502843","07/09/2018","Older People Care Purchasing","OP Care Purchasing (Spot Placements)","R5420"
"Wolverhampton City Council","http://opendatacommunities.org/id/metropolitan-district-council/wolverhampton","706697","Radis Community Care","0209201820180906","76.23","TPP - Home Care","190502843","07/09/2018","Older People Care Purchasing","OP Care Purchasing (Spot Placements)","R5420"
"Wolverhampton City Council","http://opendatacommunities.org/id/metropolitan-district-council/wolverhampton","706697","Radis Community Care","0209201820180906","54.45","TPP - Home Care","190502843","07/09/2018","Older People Care Purchasing","OP Care Purchasing (Spot Placements)","R5420"
"Wolverhampton City Council","http://opendatacommunities.org/id/metropolitan-district-council/wolverhampton","706697","Radis Community Care","0209201820180906","32.67","TPP - Home Care","190502843","07/09/2018","Physical Disabilities Care Purchasing","PD Care Purchasing (Spot Placements)","R5420"
"Wolverhampton City Council","http://opendatacommunities.org/id/metropolitan-district-council/wolverhampton","706697","Radis Community Care","M11423","2,234.40","TPP - Home Care","130226360","05/09/2018","Independent Living Service","Telecare","R5420"
"Wolverhampton City Council","http://opendatacommunities.org/id/metropolitan-district-council/wolverhampton","706697","Radis Community Care","2309201820180927","14.52","TPP - Home Care","190511122","28/09/2018","Older People Care Purchasing","OP Care Purchasing (Spot Placements)","R5420"
"Wolverhampton City Council","http://opendatacommunities.org/id/metropolitan-district-council/wolverhampton","706697","Radis Community Care","2309201820180927","94.38","TPP - Home Care","190511122","28/09/2018","Older People Care Purchasing","OP Care Purchasing (Spot Placements)","R5420"
"Wolverhampton City Council","http://opendatacommunities.org/id/metropolitan-district-council/wolverhampton","706697","Radis Community Care","2309201820180927","98.01","TPP - Home Care","190511122","28/09/2018","Older People Care Purchasing","OP Care Purchasing (Spot Placements)","R5420"
"Wolverhampton City Council","http://opendatacommunities.org/id/metropolitan-district-council/wolverhampton","706697","Radis Community Care","2309201820180927","43.56","TPP - Home Care","190511122","28/09/2018","Older People Care Purchasing","OP Care Purchasing (Spot Placements)","R5420"
"Wolverhampton City Council","http://opendatacommunities.org/id/metropolitan-district-council/wolverhampton","706697","Radis Community Care","2309201820180927","50.82","TPP - Home Care","190511122","28/09/2018","Older People Care Purchasing","OP Care Purchasing (Spot Placements)","R5420"
"Wolverhampton City Council","http://opendatacommunities.org/id/metropolitan-district-council/wolverhampton","706697","Radis Community Care","2309201820180927","105.27","TPP - Home Care","190511122","28/09/2018","Older People Care Purchasing","OP Care Purchasing (Spot Placements)","R5420"
"Wolverhampton City Council","http://opendatacommunities.org/id/metropolitan-district-council/wolverhampton","706697","Radis Community Care","2309201820180927","21.78","TPP - Home Care","190511122","28/09/2018","Physical Disabilities Care Purchasing","PD Care Purchasing (Spot Placements)","R5420"
"Wolverhampton City Council","http://opendatacommunities.org/id/metropolitan-district-council/wolverhampton","706697","Radis Community Care","2309201820180927","36.30","TPP - Home Care","190511122","28/09/2018","Older People Care Purchasing","OP Care Purchasing (Spot Placements)","R5420"
"Wolverhampton City Council","http://opendatacommunities.org/id/metropolitan-district-council/wolverhampton","706697","Radis Community Care","2309201820180927","163.35","TPP - Home Care","190511122","28/09/2018","Physical Disabilities Care Purchasing","PD Care Purchasing (Spot Placements)","R5420"
"Wolverhampton City Council","http://opendatacommunities.org/id/metropolitan-district-council/wolverhampton","706697","Radis Community Care","2309201820180927","58.08","TPP - Home Care","190511122","28/09/2018","Physical Disabilities Care Purchasing","PD Care Purchasing (Spot Placements)","R5420"
"Wolverhampton City Council","http://opendatacommunities.org/id/metropolitan-district-council/wolverhampton","706697","Radis Community Care","2309201820180927","39.93","TPP - Home Care","190511122","28/09/2018","Older People Care Purchasing","OP Care Purchasing (Spot Placements)","R5420"
"Wolverhampton City Council","http://opendatacommunities.org/id/metropolitan-district-council/wolverhampton","706697","Radis Community Care","2309201820180927","76.23","TPP - Home Care","190511122","28/09/2018","Physical Disabilities Care Purchasing","PD Care Purchasing (Spot Placements)","R5420"
"Wolverhampton City Council","http://opendatacommunities.org/id/metropolitan-district-council/wolverhampton","706697","Radis Community Care","2309201820180927","76.23","TPP - Home Care","190511122","28/09/2018","Physical Disabilities Care Purchasing","PD Care Purchasing (Spot Placements)","R5420"
"Wolverhampton City Council","http://opendatacommunities.org/id/metropolitan-district-council/wolverhampton","706697","Radis Community Care","2309201820180927","98.01","TPP - Home Care","190511122","28/09/2018","Older People Care Purchasing","OP Care Purchasing (Spot Placements)","R5420"
"Wolverhampton City Council","http://opendatacommunities.org/id/metropolitan-district-council/wolverhampton","706697","Radis Community Care","2309201820180927","257.73","TPP - Home Care","190511122","28/09/2018","Physical Disabilities Care Purchasing","PD Care Purchasing (Spot Placements)","R5420"
"Wolverhampton City Council","http://opendatacommunities.org/id/metropolitan-district-council/wolverhampton","706697","Radis Community Care","2309201820180927","297.66","TPP - Home Care","190511122","28/09/2018","Physical Disabilities Care Purchasing","PD Care Purchasing (Spot Placements)","R5420"
"Wolverhampton City Council","http://opendatacommunities.org/id/metropolitan-district-council/wolverhampton","706697","Radis Community Care","2309201820180927","94.38","TPP - Home Care","190511122","28/09/2018","Older People Care Purchasing","OP Care Purchasing (Spot Placements)","R5420"
"Wolverhampton City Council","http://opendatacommunities.org/id/metropolitan-district-council/wolverhampton","706697","Radis Community Care","2309201820180927","50.82","TPP - Home Care","190511122","28/09/2018","Older People Care Purchasing","OP Care Purchasing (Spot Placements)","R5420"
"Wolverhampton City Council","http://opendatacommunities.org/id/metropolitan-district-council/wolverhampton","706697","Radis Community Care","2309201820180927","123.42","TPP - Home Care","190511122","28/09/2018","Older People Care Purchasing","OP Care Purchasing (Spot Placements)","R5420"
"Wolverhampton City Council","http://opendatacommunities.org/id/metropolitan-district-council/wolverhampton","706697","Radis Community Care","2309201820180927","127.05","TPP - Home Care","190511122","28/09/2018","Older People Care Purchasing","OP Care Purchasing (Spot Placements)","R5420"
"Wolverhampton City Council","http://opendatacommunities.org/id/metropolitan-district-council/wolverhampton","706697","Radis Community Care","2309201820180927","203.28","TPP - Home Care","190511122","28/09/2018","Older People Care Purchasing","OP Care Purchasing (Spot Placements)","R5420"
"Wolverhampton City Council","http://opendatacommunities.org/id/metropolitan-district-council/wolverhampton","706697","Radis Community Care","2309201820180927","98.01","TPP - Home Care","190511122","28/09/2018","Older People Care Purchasing","OP Care Purchasing (Spot Placements)","R5420"
"Wolverhampton City Council","http://opendatacommunities.org/id/metropolitan-district-council/wolverhampton","706697","Radis Community Care","2309201820180927","188.76","TPP - Home Care","190511122","28/09/2018","Older People Care Purchasing","OP Care Purchasing (Spot Placements)","R5420"
"Wolverhampton City Council","http://opendatacommunities.org/id/metropolitan-district-council/wolverhampton","706697","Radis Community Care","2309201820180927","192.39","TPP - Home Care","190511122","28/09/2018","Older People Care Purchasing","OP Care Purchasing (Spot Placements)","R5420"
"Wolverhampton City Council","http://opendatacommunities.org/id/metropolitan-district-council/wolverhampton","706697","Radis Community Care","2309201820180927","50.82","TPP - Home Care","190511122","28/09/2018","Older People Care Purchasing","OP Care Purchasing (Spot Placements)","R5420"
"Wolverhampton City Council","http://opendatacommunities.org/id/metropolitan-district-council/wolverhampton","706697","Radis Community Care","2309201820180927","166.98","TPP - Home Care","190511122","28/09/2018","Physical Disabilities Care Purchasing","PD Care Purchasing (Spot Placements)","R5420"
"Wolverhampton City Council","http://opendatacommunities.org/id/metropolitan-district-council/wolverhampton","706697","Radis Community Care","2309201820180927","185.13","TPP - Home Care","190511122","28/09/2018","Physical Disabilities Care Purchasing","PD Care Purchasing (Spot Placements)","R5420"
"Wolverhampton City Council","http://opendatacommunities.org/id/metropolitan-district-council/wolverhampton","706697","Radis Community Care","2309201820180927","50.82","TPP - Home Care","190511122","28/09/2018","Older People Care Purchasing","OP Care Purchasing (Spot Placements)","R5420"
"Wolverhampton City Council","http://opendatacommunities.org/id/metropolitan-district-council/wolverhampton","706697","Radis Community Care","2309201820180927","159.72","TPP - Home Care","190511122","28/09/2018","Older People Care Purchasing","OP Care Purchasing (Spot Placements)","R5420"
"Wolverhampton City Council","http://opendatacommunities.org/id/metropolitan-district-council/wolverhampton","706697","Radis Community Care","2309201820180927","79.86","TPP - Home Care","190511122","28/09/2018","Older People Care Purchasing","OP Care Purchasing (Spot Placements)","R5420"
"Wolverhampton City Council","http://opendatacommunities.org/id/metropolitan-district-council/wolverhampton","706697","Radis Community Care","2309201820180927","41.40","TPP - Carer Support Service","190511122","28/09/2018","Carer Support","CS Care Purchasing (Spot Placements)","R5421"
"Wolverhampton City Council","http://opendatacommunities.org/id/metropolitan-district-council/wolverhampton","706697","Radis Community Care","2309201820180927","61.71","TPP - Home Care","190511122","28/09/2018","Physical Disabilities Care Purchasing","PD Care Purchasing (Spot Placements)","R5420"
"Wolverhampton City Council","http://opendatacommunities.org/id/metropolitan-district-council/wolverhampton","706697","Radis Community Care","2309201820180927","94.38","TPP - Home Care","190511122","28/09/2018","Older People Care Purchasing","OP Care Purchasing (Spot Placements)","R5420"
"Wolverhampton City Council","http://opendatacommunities.org/id/metropolitan-district-council/wolverhampton","706697","Radis Community Care","2309201820180927","32.67","TPP - Home Care","190511122","28/09/2018","Older People Care Purchasing","OP Care Purchasing (Spot Placements)","R5420"
"Wolverhampton City Council","http://opendatacommunities.org/id/metropolitan-district-council/wolverhampton","706697","Radis Community Care","2309201820180927","108.90","TPP - Home Care","190511122","28/09/2018","Older People Care Purchasing","OP Care Purchasing (Spot Placements)","R5420"
"Wolverhampton City Council","http://opendatacommunities.org/id/metropolitan-district-council/wolverhampton","706697","Radis Community Care","2309201820180927","101.64","TPP - Home Care","190511122","28/09/2018","Older People Care Purchasing","OP Care Purchasing (Spot Placements)","R5420"
"Wolverhampton City Council","http://opendatacommunities.org/id/metropolitan-district-council/wolverhampton","706697","Radis Community Care","2309201820180927","69.00","TPP - Carer Support Service","190511122","28/09/2018","Carer Support","CS Care Purchasing (Spot Placements)","R5421"
"Wolverhampton City Council","http://opendatacommunities.org/id/metropolitan-district-council/wolverhampton","706697","Radis Community Care","2309201820180927","32.67","TPP - Home Care","190511122","28/09/2018","Physical Disabilities Care Purchasing","PD Care Purchasing (Spot Placements)","R5420"
"Wolverhampton City Council","http://opendatacommunities.org/id/metropolitan-district-council/wolverhampton","706697","Radis Community Care","2309201820180927","210.54","TPP - Home Care","190511122","28/09/2018","Older People Care Purchasing","OP Care Purchasing (Spot Placements)","R5420"
"Wolverhampton City Council","http://opendatacommunities.org/id/metropolitan-district-council/wolverhampton","706697","Radis Community Care","2309201820180927","225.06","TPP - Home Care","190511122","28/09/2018","Older People Care Purchasing","OP Care Purchasing (Spot Placements)","R5420"
"Wolverhampton City Council","http://opendatacommunities.org/id/metropolitan-district-council/wolverhampton","706697","Radis Community Care","2309201820180927","225.06","TPP - Home Care","190511122","28/09/2018","Older People Care Purchasing","OP Care Purchasing (Spot Placements)","R5420"
"Wolverhampton City Council","http://opendatacommunities.org/id/metropolitan-district-council/wolverhampton","706697","Radis Community Care","2309201820180927","152.46","TPP - Home Care","190511122","28/09/2018","Older People Care Purchasing","OP Care Purchasing (Spot Placements)","R5420"
"Wolverhampton City Council","http://opendatacommunities.org/id/metropolitan-district-council/wolverhampton","706697","Radis Community Care","2309201820180927","94.38","TPP - Home Care","190511122","28/09/2018","Older People Care Purchasing","OP Care Purchasing (Spot Placements)","R5420"
"Wolverhampton City Council","http://opendatacommunities.org/id/metropolitan-district-council/wolverhampton","706697","Radis Community Care","2309201820180927","50.82","TPP - Home Care","190511122","28/09/2018","Older People Care Purchasing","OP Care Purchasing (Spot Placements)","R5420"
"Wolverhampton City Council","http://opendatacommunities.org/id/metropolitan-district-council/wolverhampton","706697","Radis Community Care","2309201820180927","152.46","TPP - Home Care","190511122","28/09/2018","Older People Care Purchasing","OP Care Purchasing (Spot Placements)","R5420"
"Wolverhampton City Council","http://opendatacommunities.org/id/metropolitan-district-council/wolverhampton","706697","Radis Community Care","2309201820180927","152.46","TPP - Home Care","190511122","28/09/2018","Older People Care Purchasing","OP Care Purchasing (Spot Placements)","R5420"
"Wolverhampton City Council","http://opendatacommunities.org/id/metropolitan-district-council/wolverhampton","706697","Radis Community Care","2309201820180927","72.60","TPP - Home Care","190511122","28/09/2018","Older People Care Purchasing","OP Care Purchasing (Spot Placements)","R5420"
"Wolverhampton City Council","http://opendatacommunities.org/id/metropolitan-district-council/wolverhampton","706697","Radis Community Care","2309201820180927","98.01","TPP - Home Care","190511122","28/09/2018","Older People Care Purchasing","OP Care Purchasing (Spot Placements)","R5420"
"Wolverhampton City Council","http://opendatacommunities.org/id/metropolitan-district-council/wolverhampton","706697","Radis Community Care","2309201820180927","192.39","TPP - Home Care","190511122","28/09/2018","Older People Care Purchasing","OP Care Purchasing (Spot Placements)","R5420"
"Wolverhampton City Council","http://opendatacommunities.org/id/metropolitan-district-council/wolverhampton","706697","Radis Community Care","2309201820180927","199.65","TPP - Home Care","190511122","28/09/2018","Older People Care Purchasing","OP Care Purchasing (Spot Placements)","R5420"
"Wolverhampton City Council","http://opendatacommunities.org/id/metropolitan-district-council/wolverhampton","706697","Radis Community Care","2309201820180927","159.72","TPP - Home Care","190511122","28/09/2018","Older People Care Purchasing","OP Care Purchasing (Spot Placements)","R5420"
"Wolverhampton City Council","http://opendatacommunities.org/id/metropolitan-district-council/wolverhampton","706697","Radis Community Care","2309201820180927","196.02","TPP - Home Care","190511122","28/09/2018","Older People Care Purchasing","OP Care Purchasing (Spot Placements)","R5420"
"Wolverhampton City Council","http://opendatacommunities.org/id/metropolitan-district-council/wolverhampton","706697","Radis Community Care","2309201820180927","76.23","TPP - Home Care","190511122","28/09/2018","Older People Care Purchasing","OP Care Purchasing (Spot Placements)","R5420"
"Wolverhampton City Council","http://opendatacommunities.org/id/metropolitan-district-council/wolverhampton","706697","Radis Community Care","2309201820180927","41.40","TPP - Carer Support Service","190511122","28/09/2018","Carer Support","CS Care Purchasing (Spot Placements)","R5421"
"Wolverhampton City Council","http://opendatacommunities.org/id/metropolitan-district-council/wolverhampton","706697","Radis Community Care","2309201820180927","203.28","TPP - Home Care","190511122","28/09/2018","Older People Care Purchasing","OP Care Purchasing (Spot Placements)","R5420"
"Wolverhampton City Council","http://opendatacommunities.org/id/metropolitan-district-council/wolverhampton","706697","Radis Community Care","2309201820180927","170.61","TPP - Home Care","190511122","28/09/2018","Older People Care Purchasing","OP Care Purchasing (Spot Placements)","R5420"
"Wolverhampton City Council","http://opendatacommunities.org/id/metropolitan-district-council/wolverhampton","706697","Radis Community Care","2309201820180927","101.64","TPP - Home Care","190511122","28/09/2018","Older People Care Purchasing","OP Care Purchasing (Spot Placements)","R5420"
"Wolverhampton City Council","http://opendatacommunities.org/id/metropolitan-district-council/wolverhampton","706697","Radis Community Care","2309201820180927","76.23","TPP - Home Care","190511122","28/09/2018","Older People Care Purchasing","OP Care Purchasing (Spot Placements)","R5420"
"Wolverhampton City Council","http://opendatacommunities.org/id/metropolitan-district-council/wolverhampton","706697","Radis Community Care","2309201820180927","25.41","TPP - Home Care","190511122","28/09/2018","Older People Care Purchasing","OP Care Purchasing (Spot Placements)","R5420"
"Wolverhampton City Council","http://opendatacommunities.org/id/metropolitan-district-council/wolverhampton","706697","Radis Community Care","2309201820180927","192.39","TPP - Home Care","190511122","28/09/2018","Older People Care Purchasing","OP Care Purchasing (Spot Placements)","R5420"
"Wolverhampton City Council","http://opendatacommunities.org/id/metropolitan-district-council/wolverhampton","706697","Radis Community Care","2309201820180927","127.05","TPP - Home Care","190511122","28/09/2018","Older People Care Purchasing","OP Care Purchasing (Spot Placements)","R5420"
"Wolverhampton City Council","http://opendatacommunities.org/id/metropolitan-district-council/wolverhampton","706697","Radis Community Care","2309201820180927","50.82","TPP - Home Care","190511122","28/09/2018","Older People Care Purchasing","OP Care Purchasing (Spot Placements)","R5420"
"Wolverhampton City Council","http://opendatacommunities.org/id/metropolitan-district-council/wolverhampton","706697","Radis Community Care","2309201820180927","50.82","TPP - Home Care","190511122","28/09/2018","Older People Care Purchasing","OP Care Purchasing (Spot Placements)","R5420"
"Wolverhampton City Council","http://opendatacommunities.org/id/metropolitan-district-council/wolverhampton","706697","Radis Community Care","2309201820180927","50.82","TPP - Home Care","190511122","28/09/2018","Older People Care Purchasing","OP Care Purchasing (Spot Placements)","R5420"
"Wolverhampton City Council","http://opendatacommunities.org/id/metropolitan-district-council/wolverhampton","706697","Radis Community Care","2309201820180927","43.56","TPP - Home Care","190511122","28/09/2018","Older People Care Purchasing","OP Care Purchasing (Spot Placements)","R5420"
"Wolverhampton City Council","http://opendatacommunities.org/id/metropolitan-district-council/wolverhampton","706697","Radis Community Care","2309201820180927","50.82","TPP - Home Care","190511122","28/09/2018","Older People Care Purchasing","OP Care Purchasing (Spot Placements)","R5420"
"Wolverhampton City Council","http://opendatacommunities.org/id/metropolitan-district-council/wolverhampton","706697","Radis Community Care","2309201820180927","250.47","TPP - Home Care","190511122","28/09/2018","Older People Care Purchasing","OP Care Purchasing (Spot Placements)","R5420"
"Wolverhampton City Council","http://opendatacommunities.org/id/metropolitan-district-council/wolverhampton","706697","Radis Community Care","2309201820180927","101.64","TPP - Home Care","190511122","28/09/2018","Older People Care Purchasing","OP Care Purchasing (Spot Placements)","R5420"
"Wolverhampton City Council","http://opendatacommunities.org/id/metropolitan-district-council/wolverhampton","706697","Radis Community Care","2309201820180927","152.46","TPP - Home Care","190511122","28/09/2018","Older People Care Purchasing","OP Care Purchasing (Spot Placements)","R5420"
"Wolverhampton City Council","http://opendatacommunities.org/id/metropolitan-district-council/wolverhampton","706697","Radis Community Care","2309201820180927","101.64","TPP - Home Care","190511122","28/09/2018","Older People Care Purchasing","OP Care Purchasing (Spot Placements)","R5420"
"Wolverhampton City Council","http://opendatacommunities.org/id/metropolitan-district-council/wolverhampton","706697","Radis Community Care","2309201820180927","163.35","TPP - Home Care","190511122","28/09/2018","Older People Care Purchasing","OP Care Purchasing (Spot Placements)","R5420"
"Wolverhampton City Council","http://opendatacommunities.org/id/metropolitan-district-council/wolverhampton","706697","Radis Community Care","2309201820180927","37.95","TPP - Carer Support Service","190511122","28/09/2018","Carer Support","CS Care Purchasing (Spot Placements)","R5421"
"Wolverhampton City Council","http://opendatacommunities.org/id/metropolitan-district-council/wolverhampton","706697","Radis Community Care","2309201820180927","232.32","TPP - Home Care","190511122","28/09/2018","Older People Care Purchasing","OP Care Purchasing (Spot Placements)","R5420"
"Wolverhampton City Council","http://opendatacommunities.org/id/metropolitan-district-council/wolverhampton","706697","Radis Community Care","2309201820180927","101.64","TPP - Home Care","190511122","28/09/2018","Older People Care Purchasing","OP Care Purchasing (Spot Placements)","R5420"
"Wolverhampton City Council","http://opendatacommunities.org/id/metropolitan-district-council/wolverhampton","706697","Radis Community Care","2309201820180927","137.94","TPP - Home Care","190511122","28/09/2018","Older People Care Purchasing","OP Care Purchasing (Spot Placements)","R5420"
"Wolverhampton City Council","http://opendatacommunities.org/id/metropolitan-district-council/wolverhampton","706697","Radis Community Care","2309201820180927","101.64","TPP - Home Care","190511122","28/09/2018","Older People Care Purchasing","OP Care Purchasing (Spot Placements)","R5420"
"Wolverhampton City Council","http://opendatacommunities.org/id/metropolitan-district-council/wolverhampton","706697","Radis Community Care","2309201820180927","152.46","TPP - Home Care","190511122","28/09/2018","Physical Disabilities Care Purchasing","PD Care Purchasing (Spot Placements)","R5420"
"Wolverhampton City Council","http://opendatacommunities.org/id/metropolitan-district-council/wolverhampton","706697","Radis Community Care","2309201820180927","152.46","TPP - Home Care","190511122","28/09/2018","Physical Disabilities Care Purchasing","PD Care Purchasing (Spot Placements)","R5420"
"Wolverhampton City Council","http://opendatacommunities.org/id/metropolitan-district-council/wolverhampton","706697","Radis Community Care","2309201820180927","257.73","TPP - Home Care","190511122","28/09/2018","Older People Care Purchasing","OP Care Purchasing (Spot Placements)","R5420"
"Wolverhampton City Council","http://opendatacommunities.org/id/metropolitan-district-council/wolverhampton","706697","Radis Community Care","2309201820180927","206.91","TPP - Home Care","190511122","28/09/2018","Older People Care Purchasing","OP Care Purchasing (Spot Placements)","R5420"
"Wolverhampton City Council","http://opendatacommunities.org/id/metropolitan-district-council/wolverhampton","706697","Radis Community Care","2309201820180927","101.64","TPP - Home Care","190511122","28/09/2018","Physical Disabilities Care Purchasing","PD Care Purchasing (Spot Placements)","R5420"
"Wolverhampton City Council","http://opendatacommunities.org/id/metropolitan-district-council/wolverhampton","706697","Radis Community Care","2309201820180927","101.64","TPP - Home Care","190511122","28/09/2018","Physical Disabilities Care Purchasing","PD Care Purchasing (Spot Placements)","R5420"
"Wolverhampton City Council","http://opendatacommunities.org/id/metropolitan-district-council/wolverhampton","706697","Radis Community Care","2309201820180927","192.39","TPP - Home Care","190511122","28/09/2018","Older People Care Purchasing","OP Care Purchasing (Spot Placements)","R5420"
"Wolverhampton City Council","http://opendatacommunities.org/id/metropolitan-district-council/wolverhampton","706697","Radis Community Care","2309201820180927","101.64","TPP - Home Care","190511122","28/09/2018","Older People Care Purchasing","OP Care Purchasing (Spot Placements)","R5420"
"Wolverhampton City Council","http://opendatacommunities.org/id/metropolitan-district-council/wolverhampton","706697","Radis Community Care","2309201820180927","101.64","TPP - Home Care","190511122","28/09/2018","Older People Care Purchasing","OP Care Purchasing (Spot Placements)","R5420"
"Wolverhampton City Council","http://opendatacommunities.org/id/metropolitan-district-council/wolverhampton","706697","Radis Community Care","2309201820180927","214.17","TPP - Home Care","190511122","28/09/2018","Older People Care Purchasing","OP Care Purchasing (Spot Placements)","R5420"
"Wolverhampton City Council","http://opendatacommunities.org/id/metropolitan-district-council/wolverhampton","706697","Radis Community Care","2309201820180927","145.20","TPP - Home Care","190511122","28/09/2018","Older People Care Purchasing","OP Care Purchasing (Spot Placements)","R5420"
"Wolverhampton City Council","http://opendatacommunities.org/id/metropolitan-district-council/wolverhampton","706697","Radis Community Care","2309201820180927","101.64","TPP - Home Care","190511122","28/09/2018","Older People Care Purchasing","OP Care Purchasing (Spot Placements)","R5420"
"Wolverhampton City Council","http://opendatacommunities.org/id/metropolitan-district-council/wolverhampton","706697","Radis Community Care","2309201820180927","185.13","TPP - Home Care","190511122","28/09/2018","Older People Care Purchasing","OP Care Purchasing (Spot Placements)","R5420"
"Wolverhampton City Council","http://opendatacommunities.org/id/metropolitan-district-council/wolverhampton","706697","Radis Community Care","2309201820180927","50.82","TPP - Home Care","190511122","28/09/2018","Older People Care Purchasing","OP Care Purchasing (Spot Placements)","R5420"
"Wolverhampton City Council","http://opendatacommunities.org/id/metropolitan-district-council/wolverhampton","706697","Radis Community Care","2309201820180927","228.69","TPP - Home Care","190511122","28/09/2018","Older People Care Purchasing","OP Care Purchasing (Spot Placements)","R5420"
"Wolverhampton City Council","http://opendatacommunities.org/id/metropolitan-district-council/wolverhampton","706697","Radis Community Care","2309201820180927","43.56","TPP - Home Care","190511122","28/09/2018","Older People Care Purchasing","OP Care Purchasing (Spot Placements)","R5420"
"Wolverhampton City Council","http://opendatacommunities.org/id/metropolitan-district-council/wolverhampton","706697","Radis Community Care","2309201820180927","177.87","TPP - Home Care","190511122","28/09/2018","Older People Care Purchasing","OP Care Purchasing (Spot Placements)","R5420"
"Wolverhampton City Council","http://opendatacommunities.org/id/metropolitan-district-council/wolverhampton","706697","Radis Community Care","2309201820180927","228.69","TPP - Home Care","190511122","28/09/2018","Older People Care Purchasing","OP Care Purchasing (Spot Placements)","R5420"
"Wolverhampton City Council","http://opendatacommunities.org/id/metropolitan-district-council/wolverhampton","706697","Radis Community Care","2309201820180927","246.84","TPP - Home Care","190511122","28/09/2018","Older People Care Purchasing","OP Care Purchasing (Spot Placements)","R5420"
"Wolverhampton City Council","http://opendatacommunities.org/id/metropolitan-district-council/wolverhampton","706697","Radis Community Care","2309201820180927","32.67","TPP - Home Care","190511122","28/09/2018","Older People Care Purchasing","OP Care Purchasing (Spot Placements)","R5420"
"Wolverhampton City Council","http://opendatacommunities.org/id/metropolitan-district-council/wolverhampton","706697","Radis Community Care","2309201820180927","36.30","TPP - Home Care","190511122","28/09/2018","Older People Care Purchasing","OP Care Purchasing (Spot Placements)","R5420"
"Wolverhampton City Council","http://opendatacommunities.org/id/metropolitan-district-council/wolverhampton","706697","Radis Community Care","2309201820180927","87.12","TPP - Home Care","190511122","28/09/2018","Older People Care Purchasing","OP Care Purchasing (Spot Placements)","R5420"
"Wolverhampton City Council","http://opendatacommunities.org/id/metropolitan-district-council/wolverhampton","706697","Radis Community Care","2309201820180927","43.56","TPP - Home Care","190511122","28/09/2018","Physical Disabilities Care Purchasing","PD Care Purchasing (Spot Placements)","R5420"
"Wolverhampton City Council","http://opendatacommunities.org/id/metropolitan-district-council/wolverhampton","706697","Radis Community Care","2309201820180927","199.65","TPP - Home Care","190511122","28/09/2018","Older People Care Purchasing","OP Care Purchasing (Spot Placements)","R5420"
"Wolverhampton City Council","http://opendatacommunities.org/id/metropolitan-district-council/wolverhampton","706697","Radis Community Care","2309201820180927","206.91","TPP - Home Care","190511122","28/09/2018","Older People Care Purchasing","OP Care Purchasing (Spot Placements)","R5420"
"Wolverhampton City Council","http://opendatacommunities.org/id/metropolitan-district-council/wolverhampton","706697","Radis Community Care","2309201820180927","145.20","TPP - Home Care","190511122","28/09/2018","Older People Care Purchasing","OP Care Purchasing (Spot Placements)","R5420"
"Wolverhampton City Council","http://opendatacommunities.org/id/metropolitan-district-council/wolverhampton","706697","Radis Community Care","2309201820180927","94.38","TPP - Home Care","190511122","28/09/2018","Older People Care Purchasing","OP Care Purchasing (Spot Placements)","R5420"
"Wolverhampton City Council","http://opendatacommunities.org/id/metropolitan-district-council/wolverhampton","706697","Radis Community Care","2309201820180927","41.40","TPP - Carer Support Service","190511122","28/09/2018","Carer Support","CS Care Purchasing (Spot Placements)","R5421"
"Wolverhampton City Council","http://opendatacommunities.org/id/metropolitan-district-council/wolverhampton","706697","Radis Community Care","2309201820180927","54.45","TPP - Home Care","190511122","28/09/2018","Older People Care Purchasing","OP Care Purchasing (Spot Placements)","R5420"
"Wolverhampton City Council","http://opendatacommunities.org/id/metropolitan-district-council/wolverhampton","706697","Radis Community Care","2309201820180927","87.12","TPP - Home Care","190511122","28/09/2018","Older People Care Purchasing","OP Care Purchasing (Spot Placements)","R5420"
"Wolverhampton City Council","http://opendatacommunities.org/id/metropolitan-district-council/wolverhampton","706697","Radis Community Care","2309201820180927","206.91","TPP - Home Care","190511122","28/09/2018","Older People Care Purchasing","OP Care Purchasing (Spot Placements)","R5420"
"Wolverhampton City Council","http://opendatacommunities.org/id/metropolitan-district-council/wolverhampton","706697","Radis Community Care","2309201820180927","199.65","TPP - Home Care","190511122","28/09/2018","Older People Care Purchasing","OP Care Purchasing (Spot Placements)","R5420"
"Wolverhampton City Council","http://opendatacommunities.org/id/metropolitan-district-council/wolverhampton","706697","Radis Community Care","2309201820180927","50.82","TPP - Home Care","190511122","28/09/2018","Older People Care Purchasing","OP Care Purchasing (Spot Placements)","R5420"
"Wolverhampton City Council","http://opendatacommunities.org/id/metropolitan-district-council/wolverhampton","706697","Radis Community Care","2309201820180927","50.82","TPP - Home Care","190511122","28/09/2018","Physical Disabilities Care Purchasing","PD Care Purchasing (Spot Placements)","R5420"
"Wolverhampton City Council","http://opendatacommunities.org/id/metropolitan-district-council/wolverhampton","706697","Radis Community Care","2309201820180927","50.82","TPP - Home Care","190511122","28/09/2018","Physical Disabilities Care Purchasing","PD Care Purchasing (Spot Placements)","R5420"
"Wolverhampton City Council","http://opendatacommunities.org/id/metropolitan-district-council/wolverhampton","706697","Radis Community Care","2309201820180927","21.78","TPP - Home Care","190511122","28/09/2018","Physical Disabilities Care Purchasing","PD Care Purchasing (Spot Placements)","R5420"
"Wolverhampton City Council","http://opendatacommunities.org/id/metropolitan-district-council/wolverhampton","706697","Radis Community Care","2309201820180927","83.49","TPP - Home Care","190511122","28/09/2018","Older People Care Purchasing","OP Care Purchasing (Spot Placements)","R5420"
"Wolverhampton City Council","http://opendatacommunities.org/id/metropolitan-district-council/wolverhampton","706697","Radis Community Care","2309201820180927","170.61","TPP - Home Care","190511122","28/09/2018","Physical Disabilities Care Purchasing","PD Care Purchasing (Spot Placements)","R5420"
"Wolverhampton City Council","http://opendatacommunities.org/id/metropolitan-district-council/wolverhampton","706697","Radis Community Care","2309201820180927","134.31","TPP - Home Care","190511122","28/09/2018","Physical Disabilities Care Purchasing","PD Care Purchasing (Spot Placements)","R5420"
"Wolverhampton City Council","http://opendatacommunities.org/id/metropolitan-district-council/wolverhampton","706697","Radis Community Care","2309201820180927","14.52","TPP - Home Care","190511122","28/09/2018","Older People Care Purchasing","OP Care Purchasing (Spot Placements)","R5420"
"Wolverhampton City Council","http://opendatacommunities.org/id/metropolitan-district-council/wolverhampton","706697","Radis Community Care","2309201820180927","36.30","TPP - Home Care","190511122","28/09/2018","Older People Care Purchasing","OP Care Purchasing (Spot Placements)","R5420"
"Wolverhampton City Council","http://opendatacommunities.org/id/metropolitan-district-council/wolverhampton","706697","Radis Community Care","2309201820180927","479.16","TPP - Home Care","190511122","28/09/2018","Physical Disabilities Care Purchasing","PD Care Purchasing (Spot Placements)","R5420"
"Wolverhampton City Council","http://opendatacommunities.org/id/metropolitan-district-council/wolverhampton","706697","Radis Community Care","2309201820180927","479.16","TPP - Home Care","190511122","28/09/2018","Physical Disabilities Care Purchasing","PD Care Purchasing (Spot Placements)","R5420"
"Wolverhampton City Council","http://opendatacommunities.org/id/metropolitan-district-council/wolverhampton","706697","Radis Community Care","2309201820180927","76.23","TPP - Home Care","190511122","28/09/2018","Learning Disabilities Care Purchasing","LD Care Purchasing (Spot Placements)","R5420"
"Wolverhampton City Council","http://opendatacommunities.org/id/metropolitan-district-council/wolverhampton","706697","Radis Community Care","2309201820180927","18.15","TPP - Home Care","190511122","28/09/2018","Older People Care Purchasing","OP Care Purchasing (Spot Placements)","R5420"
"Wolverhampton City Council","http://opendatacommunities.org/id/metropolitan-district-council/wolverhampton","706697","Radis Community Care","2309201820180927","58.08","TPP - Home Care","190511122","28/09/2018","Older People Care Purchasing","OP Care Purchasing (Spot Placements)","R5420"
"Wolverhampton City Council","http://opendatacommunities.org/id/metropolitan-district-council/wolverhampton","706697","Radis Community Care","10091820180921","50.82","TPP - Home Care","190509192","26/09/2018","Older People Care Purchasing","OP Care Purchasing (Spot Placements)","R5420"
"Wolverhampton City Council","http://opendatacommunities.org/id/metropolitan-district-council/wolverhampton","706697","Radis Community Care","10091820180921","152.46","TPP - Home Care","190509192","26/09/2018","Older People Care Purchasing","OP Care Purchasing (Spot Placements)","R5420"
"Wolverhampton City Council","http://opendatacommunities.org/id/metropolitan-district-council/wolverhampton","706697","Radis Community Care","10091820180921","152.46","TPP - Home Care","190509192","26/09/2018","Older People Care Purchasing","OP Care Purchasing (Spot Placements)","R5420"
"Wolverhampton City Council","http://opendatacommunities.org/id/metropolitan-district-council/wolverhampton","706697","Radis Community Care","10091820180921","76.23","TPP - Home Care","190509192","26/09/2018","Older People Care Purchasing","OP Care Purchasing (Spot Placements)","R5420"
"Wolverhampton City Council","http://opendatacommunities.org/id/metropolitan-district-council/wolverhampton","706697","Radis Community Care","10091820180921","101.64","TPP - Home Care","190509192","26/09/2018","Older People Care Purchasing","OP Care Purchasing (Spot Placements)","R5420"
"Wolverhampton City Council","http://opendatacommunities.org/id/metropolitan-district-council/wolverhampton","706697","Radis Community Care","10091820180921","36.30","TPP - Home Care","190509192","26/09/2018","Older People Care Purchasing","OP Care Purchasing (Spot Placements)","R5420"
"Wolverhampton City Council","http://opendatacommunities.org/id/metropolitan-district-council/wolverhampton","706697","Radis Community Care","10091820180921","94.38","TPP - Home Care","190509192","26/09/2018","Older People Care Purchasing","OP Care Purchasing (Spot Placements)","R5420"
"Wolverhampton City Council","http://opendatacommunities.org/id/metropolitan-district-council/wolverhampton","706697","Radis Community Care","10091820180921","243.21","TPP - Home Care","190509192","26/09/2018","Physical Disabilities Care Purchasing","PD Care Purchasing (Spot Placements)","R5420"
"Wolverhampton City Council","http://opendatacommunities.org/id/metropolitan-district-council/wolverhampton","706697","Radis Community Care","10091820180921","315.81","TPP - Home Care","190509192","26/09/2018","Physical Disabilities Care Purchasing","PD Care Purchasing (Spot Placements)","R5420"
"Wolverhampton City Council","http://opendatacommunities.org/id/metropolitan-district-council/wolverhampton","706697","Radis Community Care","10091820180921","90.75","TPP - Home Care","190509192","26/09/2018","Older People Care Purchasing","OP Care Purchasing (Spot Placements)","R5420"
"Wolverhampton City Council","http://opendatacommunities.org/id/metropolitan-district-council/wolverhampton","706697","Radis Community Care","10091820180921","50.82","TPP - Home Care","190509192","26/09/2018","Older People Care Purchasing","OP Care Purchasing (Spot Placements)","R5420"
"Wolverhampton City Council","http://opendatacommunities.org/id/metropolitan-district-council/wolverhampton","706697","Radis Community Care","10091820180921","123.42","TPP - Home Care","190509192","26/09/2018","Older People Care Purchasing","OP Care Purchasing (Spot Placements)","R5420"
"Wolverhampton City Council","http://opendatacommunities.org/id/metropolitan-district-council/wolverhampton","706697","Radis Community Care","10091820180921","119.79","TPP - Home Care","190509192","26/09/2018","Older People Care Purchasing","OP Care Purchasing (Spot Placements)","R5420"
"Wolverhampton City Council","http://opendatacommunities.org/id/metropolitan-district-council/wolverhampton","706697","Radis Community Care","10091820180921","177.87","TPP - Home Care","190509192","26/09/2018","Physical Disabilities Care Purchasing","PD Care Purchasing (Spot Placements)","R5420"
"Wolverhampton City Council","http://opendatacommunities.org/id/metropolitan-district-council/wolverhampton","706697","Radis Community Care","10091820180921","203.28","TPP - Home Care","190509192","26/09/2018","Older People Care Purchasing","OP Care Purchasing (Spot Placements)","R5420"
"Wolverhampton City Council","http://opendatacommunities.org/id/metropolitan-district-council/wolverhampton","706697","Radis Community Care","10091820180921","98.01","TPP - Home Care","190509192","26/09/2018","Older People Care Purchasing","OP Care Purchasing (Spot Placements)","R5420"
"Wolverhampton City Council","http://opendatacommunities.org/id/metropolitan-district-council/wolverhampton","706697","Radis Community Care","10091820180921","47.19","TPP - Home Care","190509192","26/09/2018","Older People Care Purchasing","OP Care Purchasing (Spot Placements)","R5420"
"Wolverhampton City Council","http://opendatacommunities.org/id/metropolitan-district-council/wolverhampton","706697","Radis Community Care","10091820180921","50.82","TPP - Home Care","190509192","26/09/2018","Older People Care Purchasing","OP Care Purchasing (Spot Placements)","R5420"
"Wolverhampton City Council","http://opendatacommunities.org/id/metropolitan-district-council/wolverhampton","706697","Radis Community Care","10091820180921","50.82","TPP - Home Care","190509192","26/09/2018","Older People Care Purchasing","OP Care Purchasing (Spot Placements)","R5420"
"Wolverhampton City Council","http://opendatacommunities.org/id/metropolitan-district-council/wolverhampton","706697","Radis Community Care","10091820180921","250.47","TPP - Home Care","190509192","26/09/2018","Older People Care Purchasing","OP Care Purchasing (Spot Placements)","R5420"
"Wolverhampton City Council","http://opendatacommunities.org/id/metropolitan-district-council/wolverhampton","706697","Radis Community Care","10091820180921","98.01","TPP - Home Care","190509192","26/09/2018","Older People Care Purchasing","OP Care Purchasing (Spot Placements)","R5420"
"Wolverhampton City Council","http://opendatacommunities.org/id/metropolitan-district-council/wolverhampton","706697","Radis Community Care","10091820180921","166.98","TPP - Home Care","190509192","26/09/2018","Older People Care Purchasing","OP Care Purchasing (Spot Placements)","R5420"
"Wolverhampton City Council","http://opendatacommunities.org/id/metropolitan-district-council/wolverhampton","706697","Radis Community Care","10091820180921","101.64","TPP - Home Care","190509192","26/09/2018","Older People Care Purchasing","OP Care Purchasing (Spot Placements)","R5420"
"Wolverhampton City Council","http://opendatacommunities.org/id/metropolitan-district-council/wolverhampton","706697","Radis Community Care","10091820180921","170.61","TPP - Home Care","190509192","26/09/2018","Older People Care Purchasing","OP Care Purchasing (Spot Placements)","R5420"
"Wolverhampton City Council","http://opendatacommunities.org/id/metropolitan-district-council/wolverhampton","706697","Radis Community Care","10091820180921","177.87","TPP - Home Care","190509192","26/09/2018","Older People Care Purchasing","OP Care Purchasing (Spot Placements)","R5420"
"Wolverhampton City Council","http://opendatacommunities.org/id/metropolitan-district-council/wolverhampton","706697","Radis Community Care","10091820180921","83.49","TPP - Home Care","190509192","26/09/2018","Older People Care Purchasing","OP Care Purchasing (Spot Placements)","R5420"
"Wolverhampton City Council","http://opendatacommunities.org/id/metropolitan-district-council/wolverhampton","706697","Radis Community Care","10091820180921","41.40","TPP - Carer Support Service","190509192","26/09/2018","Carer Support","CS Care Purchasing (Spot Placements)","R5421"
"Wolverhampton City Council","http://opendatacommunities.org/id/metropolitan-district-council/wolverhampton","706697","Radis Community Care","10091820180921","61.71","TPP - Home Care","190509192","26/09/2018","Physical Disabilities Care Purchasing","PD Care Purchasing (Spot Placements)","R5420"
"Wolverhampton City Council","http://opendatacommunities.org/id/metropolitan-district-council/wolverhampton","706697","Radis Community Care","10091820180921","98.01","TPP - Home Care","190509192","26/09/2018","Older People Care Purchasing","OP Care Purchasing (Spot Placements)","R5420"
"Wolverhampton City Council","http://opendatacommunities.org/id/metropolitan-district-council/wolverhampton","706697","Radis Community Care","10091820180921","36.30","TPP - Home Care","190509192","26/09/2018","Older People Care Purchasing","OP Care Purchasing (Spot Placements)","R5420"
"Wolverhampton City Council","http://opendatacommunities.org/id/metropolitan-district-council/wolverhampton","706697","Radis Community Care","10091820180921","101.64","TPP - Home Care","190509192","26/09/2018","Older People Care Purchasing","OP Care Purchasing (Spot Placements)","R5420"
"Wolverhampton City Council","http://opendatacommunities.org/id/metropolitan-district-council/wolverhampton","706697","Radis Community Care","10091820180921","101.64","TPP - Home Care","190509192","26/09/2018","Older People Care Purchasing","OP Care Purchasing (Spot Placements)","R5420"
"Wolverhampton City Council","http://opendatacommunities.org/id/metropolitan-district-council/wolverhampton","706697","Radis Community Care","10091820180921","69.00","TPP - Carer Support Service","190509192","26/09/2018","Carer Support","CS Care Purchasing (Spot Placements)","R5421"
"Wolverhampton City Council","http://opendatacommunities.org/id/metropolitan-district-council/wolverhampton","706697","Radis Community Care","10091820180921","192.39","TPP - Home Care","190509192","26/09/2018","Older People Care Purchasing","OP Care Purchasing (Spot Placements)","R5420"
"Wolverhampton City Council","http://opendatacommunities.org/id/metropolitan-district-council/wolverhampton","706697","Radis Community Care","10091820180921","185.13","TPP - Home Care","190509192","26/09/2018","Older People Care Purchasing","OP Care Purchasing (Spot Placements)","R5420"
"Wolverhampton City Council","http://opendatacommunities.org/id/metropolitan-district-council/wolverhampton","706697","Radis Community Care","10091820180921","170.61","TPP - Home Care","190509192","26/09/2018","Older People Care Purchasing","OP Care Purchasing (Spot Placements)","R5420"
"Wolverhampton City Council","http://opendatacommunities.org/id/metropolitan-district-council/wolverhampton","706697","Radis Community Care","10091820180921","214.17","TPP - Home Care","190509192","26/09/2018","Older People Care Purchasing","OP Care Purchasing (Spot Placements)","R5420"
"Wolverhampton City Council","http://opendatacommunities.org/id/metropolitan-district-council/wolverhampton","706697","Radis Community Care","10091820180921","72.60","TPP - Home Care","190509192","26/09/2018","Older People Care Purchasing","OP Care Purchasing (Spot Placements)","R5420"
"Wolverhampton City Council","http://opendatacommunities.org/id/metropolitan-district-council/wolverhampton","706697","Radis Community Care","10091820180921","41.40","TPP - Carer Support Service","190509192","26/09/2018","Carer Support","CS Care Purchasing (Spot Placements)","R5421"
"Wolverhampton City Council","http://opendatacommunities.org/id/metropolitan-district-council/wolverhampton","706697","Radis Community Care","10091820180921","199.65","TPP - Home Care","190509192","26/09/2018","Older People Care Purchasing","OP Care Purchasing (Spot Placements)","R5420"
"Wolverhampton City Council","http://opendatacommunities.org/id/metropolitan-district-council/wolverhampton","706697","Radis Community Care","10091820180921","243.21","TPP - Home Care","190509192","26/09/2018","Older People Care Purchasing","OP Care Purchasing (Spot Placements)","R5420"
"Wolverhampton City Council","http://opendatacommunities.org/id/metropolitan-district-council/wolverhampton","706697","Radis Community Care","10091820180921","98.01","TPP - Home Care","190509192","26/09/2018","Older People Care Purchasing","OP Care Purchasing (Spot Placements)","R5420"
"Wolverhampton City Council","http://opendatacommunities.org/id/metropolitan-district-council/wolverhampton","706697","Radis Community Care","10091820180921","152.46","TPP - Home Care","190509192","26/09/2018","Older People Care Purchasing","OP Care Purchasing (Spot Placements)","R5420"
"Wolverhampton City Council","http://opendatacommunities.org/id/metropolitan-district-council/wolverhampton","706697","Radis Community Care","10091820180921","94.38","TPP - Home Care","190509192","26/09/2018","Older People Care Purchasing","OP Care Purchasing (Spot Placements)","R5420"
"Wolverhampton City Council","http://opendatacommunities.org/id/metropolitan-district-council/wolverhampton","706697","Radis Community Care","10091820180921","166.98","TPP - Home Care","190509192","26/09/2018","Physical Disabilities Care Purchasing","PD Care Purchasing (Spot Placements)","R5420"
"Wolverhampton City Council","http://opendatacommunities.org/id/metropolitan-district-council/wolverhampton","706697","Radis Community Care","10091820180921","137.94","TPP - Home Care","190509192","26/09/2018","Physical Disabilities Care Purchasing","PD Care Purchasing (Spot Placements)","R5420"
"Wolverhampton City Council","http://opendatacommunities.org/id/metropolitan-district-council/wolverhampton","706697","Radis Community Care","10091820180921","257.73","TPP - Home Care","190509192","26/09/2018","Older People Care Purchasing","OP Care Purchasing (Spot Placements)","R5420"
"Wolverhampton City Council","http://opendatacommunities.org/id/metropolitan-district-council/wolverhampton","706697","Radis Community Care","10091820180921","192.39","TPP - Home Care","190509192","26/09/2018","Older People Care Purchasing","OP Care Purchasing (Spot Placements)","R5420"
"Wolverhampton City Council","http://opendatacommunities.org/id/metropolitan-district-council/wolverhampton","706697","Radis Community Care","10091820180921","43.56","TPP - Home Care","190509192","26/09/2018","Physical Disabilities Care Purchasing","PD Care Purchasing (Spot Placements)","R5420"
"Wolverhampton City Council","http://opendatacommunities.org/id/metropolitan-district-council/wolverhampton","706697","Radis Community Care","10091820180921","39.93","TPP - Home Care","190509192","26/09/2018","Physical Disabilities Care Purchasing","PD Care Purchasing (Spot Placements)","R5420"
"Wolverhampton City Council","http://opendatacommunities.org/id/metropolitan-district-council/wolverhampton","706697","Radis Community Care","10091820180921","177.87","TPP - Home Care","190509192","26/09/2018","Older People Care Purchasing","OP Care Purchasing (Spot Placements)","R5420"
"Wolverhampton City Council","http://opendatacommunities.org/id/metropolitan-district-council/wolverhampton","706697","Radis Community Care","10091820180921","101.64","TPP - Home Care","190509192","26/09/2018","Older People Care Purchasing","OP Care Purchasing (Spot Placements)","R5420"
"Wolverhampton City Council","http://opendatacommunities.org/id/metropolitan-district-council/wolverhampton","706697","Radis Community Care","10091820180921","101.64","TPP - Home Care","190509192","26/09/2018","Older People Care Purchasing","OP Care Purchasing (Spot Placements)","R5420"
"Wolverhampton City Council","http://opendatacommunities.org/id/metropolitan-district-council/wolverhampton","706697","Radis Community Care","10091820180921","214.17","TPP - Home Care","190509192","26/09/2018","Older People Care Purchasing","OP Care Purchasing (Spot Placements)","R5420"
"Wolverhampton City Council","http://opendatacommunities.org/id/metropolitan-district-council/wolverhampton","706697","Radis Community Care","10091820180921","94.38","TPP - Home Care","190509192","26/09/2018","Older People Care Purchasing","OP Care Purchasing (Spot Placements)","R5420"
"Wolverhampton City Council","http://opendatacommunities.org/id/metropolitan-district-council/wolverhampton","706697","Radis Community Care","10091820180921","163.35","TPP - Home Care","190509192","26/09/2018","Older People Care Purchasing","OP Care Purchasing (Spot Placements)","R5420"
"Wolverhampton City Council","http://opendatacommunities.org/id/metropolitan-district-council/wolverhampton","706697","Radis Community Care","10091820180921","105.27","TPP - Home Care","190509192","26/09/2018","Older People Care Purchasing","OP Care Purchasing (Spot Placements)","R5420"
"Wolverhampton City Council","http://opendatacommunities.org/id/metropolitan-district-council/wolverhampton","706697","Radis Community Care","10091820180921","166.98","TPP - Home Care","190509192","26/09/2018","Older People Care Purchasing","OP Care Purchasing (Spot Placements)","R5420"
"Wolverhampton City Council","http://opendatacommunities.org/id/metropolitan-district-council/wolverhampton","706697","Radis Community Care","10091820180921","58.08","TPP - Home Care","190509192","26/09/2018","Older People Care Purchasing","OP Care Purchasing (Spot Placements)","R5420"
"Wolverhampton City Council","http://opendatacommunities.org/id/metropolitan-district-council/wolverhampton","706697","Radis Community Care","10091820180921","217.80","TPP - Home Care","190509192","26/09/2018","Older People Care Purchasing","OP Care Purchasing (Spot Placements)","R5420"
"Wolverhampton City Council","http://opendatacommunities.org/id/metropolitan-district-council/wolverhampton","706697","Radis Community Care","10091820180921","47.19","TPP - Home Care","190509192","26/09/2018","Older People Care Purchasing","OP Care Purchasing (Spot Placements)","R5420"
"Wolverhampton City Council","http://opendatacommunities.org/id/metropolitan-district-council/wolverhampton","706697","Radis Community Care","10091820180921","156.09","TPP - Home Care","190509192","26/09/2018","Older People Care Purchasing","OP Care Purchasing (Spot Placements)","R5420"
"Wolverhampton City Council","http://opendatacommunities.org/id/metropolitan-district-council/wolverhampton","706697","Radis Community Care","10091820180921","235.95","TPP - Home Care","190509192","26/09/2018","Older People Care Purchasing","OP Care Purchasing (Spot Placements)","R5420"
"Wolverhampton City Council","http://opendatacommunities.org/id/metropolitan-district-council/wolverhampton","706697","Radis Community Care","10091820180921","225.06","TPP - Home Care","190509192","26/09/2018","Older People Care Purchasing","OP Care Purchasing (Spot Placements)","R5420"
"Wolverhampton City Council","http://opendatacommunities.org/id/metropolitan-district-council/wolverhampton","706697","Radis Community Care","10091820180921","79.86","TPP - Home Care","190509192","26/09/2018","Older People Care Purchasing","OP Care Purchasing (Spot Placements)","R5420"
"Wolverhampton City Council","http://opendatacommunities.org/id/metropolitan-district-council/wolverhampton","706697","Radis Community Care","10091820180921","39.93","TPP - Home Care","190509192","26/09/2018","Older People Care Purchasing","OP Care Purchasing (Spot Placements)","R5420"
"Wolverhampton City Council","http://opendatacommunities.org/id/metropolitan-district-council/wolverhampton","706697","Radis Community Care","10091820180921","141.57","TPP - Home Care","190509192","26/09/2018","Older People Care Purchasing","OP Care Purchasing (Spot Placements)","R5420"
"Wolverhampton City Council","http://opendatacommunities.org/id/metropolitan-district-council/wolverhampton","706697","Radis Community Care","10091820180921","196.02","TPP - Home Care","190509192","26/09/2018","Older People Care Purchasing","OP Care Purchasing (Spot Placements)","R5420"
"Wolverhampton City Council","http://opendatacommunities.org/id/metropolitan-district-council/wolverhampton","706697","Radis Community Care","10091820180921","210.54","TPP - Home Care","190509192","26/09/2018","Older People Care Purchasing","OP Care Purchasing (Spot Placements)","R5420"
"Wolverhampton City Council","http://opendatacommunities.org/id/metropolitan-district-council/wolverhampton","706697","Radis Community Care","10091820180921","21.78","TPP - Home Care","190509192","26/09/2018","Older People Care Purchasing","OP Care Purchasing (Spot Placements)","R5420"
"Wolverhampton City Council","http://opendatacommunities.org/id/metropolitan-district-council/wolverhampton","706697","Radis Community Care","10091820180921","206.91","TPP - Home Care","190509192","26/09/2018","Older People Care Purchasing","OP Care Purchasing (Spot Placements)","R5420"
"Wolverhampton City Council","http://opendatacommunities.org/id/metropolitan-district-council/wolverhampton","706697","Radis Community Care","10091820180921","196.02","TPP - Home Care","190509192","26/09/2018","Older People Care Purchasing","OP Care Purchasing (Spot Placements)","R5420"
"Wolverhampton City Council","http://opendatacommunities.org/id/metropolitan-district-council/wolverhampton","706697","Radis Community Care","10091820180921","54.45","TPP - Home Care","190509192","26/09/2018","Older People Care Purchasing","OP Care Purchasing (Spot Placements)","R5420"
"Wolverhampton City Council","http://opendatacommunities.org/id/metropolitan-district-council/wolverhampton","706697","Radis Community Care","10091820180921","50.82","TPP - Home Care","190509192","26/09/2018","Physical Disabilities Care Purchasing","PD Care Purchasing (Spot Placements)","R5420"
"Wolverhampton City Council","http://opendatacommunities.org/id/metropolitan-district-council/wolverhampton","706697","Radis Community Care","10091820180921","50.82","TPP - Home Care","190509192","26/09/2018","Physical Disabilities Care Purchasing","PD Care Purchasing (Spot Placements)","R5420"
"Wolverhampton City Council","http://opendatacommunities.org/id/metropolitan-district-council/wolverhampton","706697","Radis Community Care","10091820180921","43.56","TPP - Home Care","190509192","26/09/2018","Physical Disabilities Care Purchasing","PD Care Purchasing (Spot Placements)","R5420"
"Wolverhampton City Council","http://opendatacommunities.org/id/metropolitan-district-council/wolverhampton","706697","Radis Community Care","10091820180921","101.64","TPP - Home Care","190509192","26/09/2018","Older People Care Purchasing","OP Care Purchasing (Spot Placements)","R5420"
"Wolverhampton City Council","http://opendatacommunities.org/id/metropolitan-district-council/wolverhampton","706697","Radis Community Care","10091820180921","199.65","TPP - Home Care","190509192","26/09/2018","Physical Disabilities Care Purchasing","PD Care Purchasing (Spot Placements)","R5420"
"Wolverhampton City Council","http://opendatacommunities.org/id/metropolitan-district-council/wolverhampton","706697","Radis Community Care","10091820180921","490.05","TPP - Home Care","190509192","26/09/2018","Physical Disabilities Care Purchasing","PD Care Purchasing (Spot Placements)","R5420"
"Wolverhampton City Council","http://opendatacommunities.org/id/metropolitan-district-council/wolverhampton","706697","Radis Community Care","10091820180921","482.79","TPP - Home Care","190509192","26/09/2018","Physical Disabilities Care Purchasing","PD Care Purchasing (Spot Placements)","R5420"
"Wolverhampton City Council","http://opendatacommunities.org/id/metropolitan-district-council/wolverhampton","706697","Radis Community Care","10091820180921","76.23","TPP - Home Care","190509192","26/09/2018","Learning Disabilities Care Purchasing","LD Care Purchasing (Spot Placements)","R5420"
"Wolverhampton City Council","http://opendatacommunities.org/id/metropolitan-district-council/wolverhampton","706697","Radis Community Care","10091820180921","225.06","TPP - Home Care","190509192","26/09/2018","Older People Care Purchasing","OP Care Purchasing (Spot Placements)","R5420"
"Wolverhampton City Council","http://opendatacommunities.org/id/metropolitan-district-council/wolverhampton","706697","Radis Community Care","10091820180921","39.93","TPP - Home Care","190509192","26/09/2018","Older People Care Purchasing","OP Care Purchasing (Spot Placements)","R5420"
"Wolverhampton City Council","http://opendatacommunities.org/id/metropolitan-district-council/wolverhampton","706697","Radis Community Care","10091820180921","14.52","TPP - Home Care","190509192","26/09/2018","Older People Care Purchasing","OP Care Purchasing (Spot Placements)","R5420"
"Wolverhampton City Council","http://opendatacommunities.org/id/metropolitan-district-council/wolverhampton","706697","Radis Community Care","10091820180921","98.01","TPP - Home Care","190509192","26/09/2018","Older People Care Purchasing","OP Care Purchasing (Spot Placements)","R5420"
"Wolverhampton City Council","http://opendatacommunities.org/id/metropolitan-district-council/wolverhampton","706697","Radis Community Care","10091820180921","101.64","TPP - Home Care","190509192","26/09/2018","Older People Care Purchasing","OP Care Purchasing (Spot Placements)","R5420"
"Wolverhampton City Council","http://opendatacommunities.org/id/metropolitan-district-council/wolverhampton","706697","Radis Community Care","10091820180921","47.19","TPP - Home Care","190509192","26/09/2018","Older People Care Purchasing","OP Care Purchasing (Spot Placements)","R5420"
"Wolverhampton City Council","http://opendatacommunities.org/id/metropolitan-district-council/wolverhampton","706697","Radis Community Care","10091820180921","50.82","TPP - Home Care","190509192","26/09/2018","Older People Care Purchasing","OP Care Purchasing (Spot Placements)","R5420"
"Wolverhampton City Council","http://opendatacommunities.org/id/metropolitan-district-council/wolverhampton","706697","Radis Community Care","10091820180921","108.90","TPP - Home Care","190509192","26/09/2018","Older People Care Purchasing","OP Care Purchasing (Spot Placements)","R5420"
"Wolverhampton City Council","http://opendatacommunities.org/id/metropolitan-district-council/wolverhampton","706697","Radis Community Care","10091820180921","21.78","TPP - Home Care","190509192","26/09/2018","Physical Disabilities Care Purchasing","PD Care Purchasing (Spot Placements)","R5420"
"Wolverhampton City Council","http://opendatacommunities.org/id/metropolitan-district-council/wolverhampton","706697","Radis Community Care","10091820180921","123.42","TPP - Home Care","190509192","26/09/2018","Physical Disabilities Care Purchasing","PD Care Purchasing (Spot Placements)","R5420"
"Wolverhampton City Council","http://opendatacommunities.org/id/metropolitan-district-council/wolverhampton","706697","Radis Community Care","10091820180921","199.65","TPP - Home Care","190509192","26/09/2018","Older People Care Purchasing","OP Care Purchasing (Spot Placements)","R5420"
"Wolverhampton City Council","http://opendatacommunities.org/id/metropolitan-district-council/wolverhampton","706697","Radis Community Care","10091820180921","192.39","TPP - Home Care","190509192","26/09/2018","Older People Care Purchasing","OP Care Purchasing (Spot Placements)","R5420"
"Wolverhampton City Council","http://opendatacommunities.org/id/metropolitan-district-council/wolverhampton","706697","Radis Community Care","10091820180921","65.34","TPP - Home Care","190509192","26/09/2018","Physical Disabilities Care Purchasing","PD Care Purchasing (Spot Placements)","R5420"
"Wolverhampton City Council","http://opendatacommunities.org/id/metropolitan-district-council/wolverhampton","706697","Radis Community Care","10091820180921","54.45","TPP - Home Care","190509192","26/09/2018","Physical Disabilities Care Purchasing","PD Care Purchasing (Spot Placements)","R5420"
"Wolverhampton City Council","http://opendatacommunities.org/id/metropolitan-district-council/wolverhampton","706697","Radis Community Care","10091820180921","58.08","TPP - Home Care","190509192","26/09/2018","Older People Care Purchasing","OP Care Purchasing (Spot Placements)","R5420"
"Wolverhampton City Council","http://opendatacommunities.org/id/metropolitan-district-council/wolverhampton","706697","Radis Community Care","10091820180921","141.57","TPP - Home Care","190509192","26/09/2018","Physical Disabilities Care Purchasing","PD Care Purchasing (Spot Placements)","R5420"
"Wolverhampton City Council","http://opendatacommunities.org/id/metropolitan-district-council/wolverhampton","706697","Radis Community Care","10091820180921","196.02","TPP - Home Care","190509192","26/09/2018","Physical Disabilities Care Purchasing","PD Care Purchasing (Spot Placements)","R5420"
"Wolverhampton City Council","http://opendatacommunities.org/id/metropolitan-district-council/wolverhampton","706697","Radis Community Care","10091820180921","39.93","TPP - Home Care","190509192","26/09/2018","Older People Care Purchasing","OP Care Purchasing (Spot Placements)","R5420"
"Wolverhampton City Council","http://opendatacommunities.org/id/metropolitan-district-council/wolverhampton","706697","Radis Community Care","10091820180921","39.93","TPP - Home Care","190509192","26/09/2018","Older People Care Purchasing","OP Care Purchasing (Spot Placements)","R5420"
"Wolverhampton City Council","http://opendatacommunities.org/id/metropolitan-district-council/wolverhampton","706697","Radis Community Care","10091820180921","76.23","TPP - Home Care","190509192","26/09/2018","Physical Disabilities Care Purchasing","PD Care Purchasing (Spot Placements)","R5420"
"Wolverhampton City Council","http://opendatacommunities.org/id/metropolitan-district-council/wolverhampton","706697","Radis Community Care","10091820180921","72.60","TPP - Home Care","190509192","26/09/2018","Physical Disabilities Care Purchasing","PD Care Purchasing (Spot Placements)","R5420"
"Wolverhampton City Council","http://opendatacommunities.org/id/metropolitan-district-council/wolverhampton","706697","Radis Community Care","10091820180921","29.04","TPP - Home Care","190509192","26/09/2018","Physical Disabilities Care Purchasing","PD Care Purchasing (Spot Placements)","R5420"
"Wolverhampton City Council","http://opendatacommunities.org/id/metropolitan-district-council/wolverhampton","706697","Radis Community Care","10091820180921","232.32","TPP - Home Care","190509192","26/09/2018","Older People Care Purchasing","OP Care Purchasing (Spot Placements)","R5420"
"Wolverhampton City Council","http://opendatacommunities.org/id/metropolitan-district-council/wolverhampton","706697","Radis Community Care","10091820180921","217.80","TPP - Home Care","190509192","26/09/2018","Older People Care Purchasing","OP Care Purchasing (Spot Placements)","R5420"
"Wolverhampton City Council","http://opendatacommunities.org/id/metropolitan-district-council/wolverhampton","706697","Radis Community Care","10091820180921","239.58","TPP - Home Care","190509192","26/09/2018","Older People Care Purchasing","OP Care Purchasing (Spot Placements)","R5420"
"Wolverhampton City Council","http://opendatacommunities.org/id/metropolitan-district-council/wolverhampton","706697","Radis Community Care","10091820180921","156.09","TPP - Home Care","190509192","26/09/2018","Older People Care Purchasing","OP Care Purchasing (Spot Placements)","R5420"
"Wolverhampton City Council","http://opendatacommunities.org/id/metropolitan-district-council/wolverhampton","706697","Radis Community Care","10091820180921","98.01","TPP - Home Care","190509192","26/09/2018","Older People Care Purchasing","OP Care Purchasing (Spot Placements)","R5420"
"Wolverhampton City Council","http://opendatacommunities.org/id/metropolitan-district-council/wolverhampton","706697","Radis Community Care","10091820180921","192.39","TPP - Home Care","190509192","26/09/2018","Physical Disabilities Care Purchasing","PD Care Purchasing (Spot Placements)","R5420"
"Wolverhampton City Council","http://opendatacommunities.org/id/metropolitan-district-council/wolverhampton","706697","Radis Community Care","10091820180921","221.43","TPP - Home Care","190509192","26/09/2018","Older People Care Purchasing","OP Care Purchasing (Spot Placements)","R5420"
"Wolverhampton City Council","http://opendatacommunities.org/id/metropolitan-district-council/wolverhampton","706697","Radis Community Care","10091820180921","32.67","TPP - Home Care","190509192","26/09/2018","Older People Care Purchasing","OP Care Purchasing (Spot Placements)","R5420"
"Wolverhampton City Council","http://opendatacommunities.org/id/metropolitan-district-council/wolverhampton","706697","Radis Community Care","10091820180921","177.87","TPP - Home Care","190509192","26/09/2018","Older People Care Purchasing","OP Care Purchasing (Spot Placements)","R5420"
"Wolverhampton City Council","http://opendatacommunities.org/id/metropolitan-district-council/wolverhampton","706697","Radis Community Care","10091820180921","101.64","TPP - Home Care","190509192","26/09/2018","Older People Care Purchasing","OP Care Purchasing (Spot Placements)","R5420"
"Wolverhampton City Council","http://opendatacommunities.org/id/metropolitan-district-council/wolverhampton","706697","Radis Community Care","10091820180921","90.75","TPP - Home Care","190509192","26/09/2018","Older People Care Purchasing","OP Care Purchasing (Spot Placements)","R5420"
"Wolverhampton City Council","http://opendatacommunities.org/id/metropolitan-district-council/wolverhampton","706697","Radis Community Care","10091820180921","54.45","TPP - Home Care","190509192","26/09/2018","Older People Care Purchasing","OP Care Purchasing (Spot Placements)","R5420"
"Wolverhampton City Council","http://opendatacommunities.org/id/metropolitan-district-council/wolverhampton","706697","Radis Community Care","10091820180921","210.54","TPP - Home Care","190509192","26/09/2018","Older People Care Purchasing","OP Care Purchasing (Spot Placements)","R5420"
"Wolverhampton City Council","http://opendatacommunities.org/id/metropolitan-district-council/wolverhampton","706697","Radis Community Care","10091820180921","127.05","TPP - Home Care","190509192","26/09/2018","Older People Care Purchasing","OP Care Purchasing (Spot Placements)","R5420"
"Wolverhampton City Council","http://opendatacommunities.org/id/metropolitan-district-council/wolverhampton","706697","Radis Community Care","10091820180921","50.82","TPP - Home Care","190509192","26/09/2018","Older People Care Purchasing","OP Care Purchasing (Spot Placements)","R5420"
"Wolverhampton City Council","http://opendatacommunities.org/id/metropolitan-district-council/wolverhampton","706697","Radis Community Care","10091820180921","50.82","TPP - Home Care","190509192","26/09/2018","Older People Care Purchasing","OP Care Purchasing (Spot Placements)","R5420"
"Wolverhampton City Council","http://opendatacommunities.org/id/metropolitan-district-council/wolverhampton","706697","Radis Community Care","M11583","5,460.00","TPP - Home Care","130229080","21/09/2018","Older People Provider Services","Night Visiting Service","R5420"
"Wolverhampton City Council","http://opendatacommunities.org/id/metropolitan-district-council/wolverhampton","706697","Radis Community Care","2608201820180905","105.27","TPP - Home Care","190502468","07/09/2018","Older People Care Purchasing","OP Care Purchasing (Spot Placements)","R5420"
"Wolverhampton City Council","http://opendatacommunities.org/id/metropolitan-district-council/wolverhampton","706697","Radis Community Care","2608201820180905","188.76","TPP - Home Care","190502468","07/09/2018","Older People Care Purchasing","OP Care Purchasing (Spot Placements)","R5420"
"Wolverhampton City Council","http://opendatacommunities.org/id/metropolitan-district-council/wolverhampton","706697","Radis Community Care","2608201820180905","47.19","TPP - Home Care","190502468","07/09/2018","Older People Care Purchasing","OP Care Purchasing (Spot Placements)","R5420"
"Wolverhampton City Council","http://opendatacommunities.org/id/metropolitan-district-council/wolverhampton","706697","Radis Community Care","2608201820180905","232.32","TPP - Home Care","190502468","07/09/2018","Older People Care Purchasing","OP Care Purchasing (Spot Placements)","R5420"
"Wolverhampton City Council","http://opendatacommunities.org/id/metropolitan-district-council/wolverhampton","706697","Radis Community Care","2608201820180905","148.83","TPP - Home Care","190502468","07/09/2018","Older People Care Purchasing","OP Care Purchasing (Spot Placements)","R5420"
"Wolverhampton City Council","http://opendatacommunities.org/id/metropolitan-district-council/wolverhampton","706697","Radis Community Care","2608201820180905","47.19","TPP - Home Care","190502468","07/09/2018","Older People Care Purchasing","OP Care Purchasing (Spot Placements)","R5420"
"Wolverhampton City Council","http://opendatacommunities.org/id/metropolitan-district-council/wolverhampton","706697","Radis Community Care","2608201820180905","174.24","TPP - Home Care","190502468","07/09/2018","Older People Care Purchasing","OP Care Purchasing (Spot Placements)","R5420"
"Wolverhampton City Council","http://opendatacommunities.org/id/metropolitan-district-council/wolverhampton","706697","Radis Community Care","2608201820180905","108.90","TPP - Home Care","190502468","07/09/2018","Older People Care Purchasing","OP Care Purchasing (Spot Placements)","R5420"
"Wolverhampton City Council","http://opendatacommunities.org/id/metropolitan-district-council/wolverhampton","706697","Radis Community Care","2608201820180905","243.21","TPP - Home Care","190502468","07/09/2018","Older People Care Purchasing","OP Care Purchasing (Spot Placements)","R5420"
"Wolverhampton City Council","http://opendatacommunities.org/id/metropolitan-district-council/wolverhampton","706697","Radis Community Care","2608201820180905","214.17","TPP - Home Care","190502468","07/09/2018","Older People Care Purchasing","OP Care Purchasing (Spot Placements)","R5420"
"Wolverhampton City Council","http://opendatacommunities.org/id/metropolitan-district-council/wolverhampton","706697","Radis Community Care","2608201820180905","79.86","TPP - Home Care","190502468","07/09/2018","Older People Care Purchasing","OP Care Purchasing (Spot Placements)","R5420"
"Wolverhampton City Council","http://opendatacommunities.org/id/metropolitan-district-council/wolverhampton","706697","Radis Community Care","2608201820180905","47.19","TPP - Home Care","190502468","07/09/2018","Older People Care Purchasing","OP Care Purchasing (Spot Placements)","R5420"
"Wolverhampton City Council","http://opendatacommunities.org/id/metropolitan-district-council/wolverhampton","706697","Radis Community Care","2608201820180905","152.46","TPP - Home Care","190502468","07/09/2018","Older People Care Purchasing","OP Care Purchasing (Spot Placements)","R5420"
"Wolverhampton City Council","http://opendatacommunities.org/id/metropolitan-district-council/wolverhampton","706697","Radis Community Care","2608201820180905","54.45","TPP - Home Care","190502468","07/09/2018","Physical Disabilities Care Purchasing","PD Care Purchasing (Spot Placements)","R5420"
"Wolverhampton City Council","http://opendatacommunities.org/id/metropolitan-district-council/wolverhampton","706697","Radis Community Care","2608201820180905","199.65","TPP - Home Care","190502468","07/09/2018","Older People Care Purchasing","OP Care Purchasing (Spot Placements)","R5420"
"Wolverhampton City Council","http://opendatacommunities.org/id/metropolitan-district-council/wolverhampton","706697","Radis Community Care","2608201820180905","192.39","TPP - Home Care","190502468","07/09/2018","Older People Care Purchasing","OP Care Purchasing (Spot Placements)","R5420"
"Wolverhampton City Council","http://opendatacommunities.org/id/metropolitan-district-council/wolverhampton","706697","Radis Community Care","2608201820180905","58.08","TPP - Home Care","190502468","07/09/2018","Older People Care Purchasing","OP Care Purchasing (Spot Placements)","R5420"
"Wolverhampton City Council","http://opendatacommunities.org/id/metropolitan-district-council/wolverhampton","706697","Radis Community Care","2608201820180905","50.82","TPP - Home Care","190502468","07/09/2018","Physical Disabilities Care Purchasing","PD Care Purchasing (Spot Placements)","R5420"
"Wolverhampton City Council","http://opendatacommunities.org/id/metropolitan-district-council/wolverhampton","706697","Radis Community Care","2608201820180905","50.82","TPP - Home Care","190502468","07/09/2018","Physical Disabilities Care Purchasing","PD Care Purchasing (Spot Placements)","R5420"
"Wolverhampton City Council","http://opendatacommunities.org/id/metropolitan-district-council/wolverhampton","706697","Radis Community Care","2608201820180905","50.82","TPP - Home Care","190502468","07/09/2018","Physical Disabilities Care Purchasing","PD Care Purchasing (Spot Placements)","R5420"
"Wolverhampton City Council","http://opendatacommunities.org/id/metropolitan-district-council/wolverhampton","706697","Radis Community Care","2608201820180905","101.64","TPP - Home Care","190502468","07/09/2018","Older People Care Purchasing","OP Care Purchasing (Spot Placements)","R5420"
"Wolverhampton City Council","http://opendatacommunities.org/id/metropolitan-district-council/wolverhampton","706697","Radis Community Care","2608201820180905","206.91","TPP - Home Care","190502468","07/09/2018","Physical Disabilities Care Purchasing","PD Care Purchasing (Spot Placements)","R5420"
"Wolverhampton City Council","http://opendatacommunities.org/id/metropolitan-district-council/wolverhampton","706697","Radis Community Care","2608201820180905","174.24","TPP - Home Care","190502468","07/09/2018","Physical Disabilities Care Purchasing","PD Care Purchasing (Spot Placements)","R5420"
"Wolverhampton City Council","http://opendatacommunities.org/id/metropolitan-district-council/wolverhampton","706697","Radis Community Care","2608201820180905","210.54","TPP - Home Care","190502468","07/09/2018","Older People Care Purchasing","OP Care Purchasing (Spot Placements)","R5420"
"Wolverhampton City Council","http://opendatacommunities.org/id/metropolitan-district-council/wolverhampton","706697","Radis Community Care","2608201820180905","29.04","TPP - Home Care","190502468","07/09/2018","Older People Care Purchasing","OP Care Purchasing (Spot Placements)","R5420"
"Wolverhampton City Council","http://opendatacommunities.org/id/metropolitan-district-council/wolverhampton","706697","Radis Community Care","2608201820180905","522.72","TPP - Home Care","190502468","07/09/2018","Physical Disabilities Care Purchasing","PD Care Purchasing (Spot Placements)","R5420"
"Wolverhampton City Council","http://opendatacommunities.org/id/metropolitan-district-council/wolverhampton","706697","Radis Community Care","2608201820180905","406.56","TPP - Home Care","190502468","07/09/2018","Physical Disabilities Care Purchasing","PD Care Purchasing (Spot Placements)","R5420"
"Wolverhampton City Council","http://opendatacommunities.org/id/metropolitan-district-council/wolverhampton","706697","Radis Community Care","2608201820180905","72.60","TPP - Home Care","190502468","07/09/2018","Learning Disabilities Care Purchasing","LD Care Purchasing (Spot Placements)","R5420"
"Wolverhampton City Council","http://opendatacommunities.org/id/metropolitan-district-council/wolverhampton","706697","Radis Community Care","2608201820180905","228.69","TPP - Home Care","190502468","07/09/2018","Older People Care Purchasing","OP Care Purchasing (Spot Placements)","R5420"
"Wolverhampton City Council","http://opendatacommunities.org/id/metropolitan-district-council/wolverhampton","706697","Radis Community Care","2608201820180905","54.45","TPP - Home Care","190502468","07/09/2018","Older People Care Purchasing","OP Care Purchasing (Spot Placements)","R5420"
"Wolverhampton City Council","http://opendatacommunities.org/id/metropolitan-district-council/wolverhampton","706697","Radis Community Care","2608201820180905","108.90","TPP - Home Care","190502468","07/09/2018","Older People Care Purchasing","OP Care Purchasing (Spot Placements)","R5420"
"Wolverhampton City Council","http://opendatacommunities.org/id/metropolitan-district-council/wolverhampton","706697","Radis Community Care","2608201820180905","257.73","TPP - Home Care","190502468","07/09/2018","Physical Disabilities Care Purchasing","PD Care Purchasing (Spot Placements)","R5420"
"Wolverhampton City Council","http://opendatacommunities.org/id/metropolitan-district-council/wolverhampton","706697","Radis Community Care","2608201820180905","301.29","TPP - Home Care","190502468","07/09/2018","Physical Disabilities Care Purchasing","PD Care Purchasing (Spot Placements)","R5420"
"Wolverhampton City Council","http://opendatacommunities.org/id/metropolitan-district-council/wolverhampton","706697","Radis Community Care","2608201820180905","101.64","TPP - Home Care","190502468","07/09/2018","Older People Care Purchasing","OP Care Purchasing (Spot Placements)","R5420"
"Wolverhampton City Council","http://opendatacommunities.org/id/metropolitan-district-council/wolverhampton","706697","Radis Community Care","2608201820180905","43.56","TPP - Home Care","190502468","07/09/2018","Older People Care Purchasing","OP Care Purchasing (Spot Placements)","R5420"
"Wolverhampton City Council","http://opendatacommunities.org/id/metropolitan-district-council/wolverhampton","706697","Radis Community Care","2608201820180905","112.53","TPP - Home Care","190502468","07/09/2018","Older People Care Purchasing","OP Care Purchasing (Spot Placements)","R5420"
"Wolverhampton City Council","http://opendatacommunities.org/id/metropolitan-district-council/wolverhampton","706697","Radis Community Care","2608201820180905","112.53","TPP - Home Care","190502468","07/09/2018","Older People Care Purchasing","OP Care Purchasing (Spot Placements)","R5420"
"Wolverhampton City Council","http://opendatacommunities.org/id/metropolitan-district-council/wolverhampton","706697","Radis Community Care","2608201820180905","203.28","TPP - Home Care","190502468","07/09/2018","Older People Care Purchasing","OP Care Purchasing (Spot Placements)","R5420"
"Wolverhampton City Council","http://opendatacommunities.org/id/metropolitan-district-council/wolverhampton","706697","Radis Community Care","2608201820180905","98.01","TPP - Home Care","190502468","07/09/2018","Older People Care Purchasing","OP Care Purchasing (Spot Placements)","R5420"
"Wolverhampton City Council","http://opendatacommunities.org/id/metropolitan-district-council/wolverhampton","706697","Radis Community Care","2608201820180905","199.65","TPP - Home Care","190502468","07/09/2018","Older People Care Purchasing","OP Care Purchasing (Spot Placements)","R5420"
"Wolverhampton City Council","http://opendatacommunities.org/id/metropolitan-district-council/wolverhampton","706697","Radis Community Care","2608201820180905","196.02","TPP - Home Care","190502468","07/09/2018","Older People Care Purchasing","OP Care Purchasing (Spot Placements)","R5420"
"Wolverhampton City Council","http://opendatacommunities.org/id/metropolitan-district-council/wolverhampton","706697","Radis Community Care","2608201820180905","166.98","TPP - Home Care","190502468","07/09/2018","Physical Disabilities Care Purchasing","PD Care Purchasing (Spot Placements)","R5420"
"Wolverhampton City Council","http://opendatacommunities.org/id/metropolitan-district-council/wolverhampton","706697","Radis Community Care","2608201820180905","137.94","TPP - Home Care","190502468","07/09/2018","Physical Disabilities Care Purchasing","PD Care Purchasing (Spot Placements)","R5420"
"Wolverhampton City Council","http://opendatacommunities.org/id/metropolitan-district-council/wolverhampton","706697","Radis Community Care","2608201820180905","14.52","TPP - Home Care","190502468","07/09/2018","Older People Care Purchasing","OP Care Purchasing (Spot Placements)","R5420"
"Wolverhampton City Council","http://opendatacommunities.org/id/metropolitan-district-council/wolverhampton","706697","Radis Community Care","2608201820180905","76.23","TPP - Home Care","190502468","07/09/2018","Older People Care Purchasing","OP Care Purchasing (Spot Placements)","R5420"
"Wolverhampton City Council","http://opendatacommunities.org/id/metropolitan-district-council/wolverhampton","706697","Radis Community Care","2608201820180905","98.01","TPP - Home Care","190502468","07/09/2018","Older People Care Purchasing","OP Care Purchasing (Spot Placements)","R5420"
"Wolverhampton City Council","http://opendatacommunities.org/id/metropolitan-district-council/wolverhampton","706697","Radis Community Care","2608201820180905","50.82","TPP - Home Care","190502468","07/09/2018","Older People Care Purchasing","OP Care Purchasing (Spot Placements)","R5420"
"Wolverhampton City Council","http://opendatacommunities.org/id/metropolitan-district-council/wolverhampton","706697","Radis Community Care","2608201820180905","50.82","TPP - Home Care","190502468","07/09/2018","Older People Care Purchasing","OP Care Purchasing (Spot Placements)","R5420"
"Wolverhampton City Council","http://opendatacommunities.org/id/metropolitan-district-council/wolverhampton","706697","Radis Community Care","2608201820180905","105.27","TPP - Home Care","190502468","07/09/2018","Older People Care Purchasing","OP Care Purchasing (Spot Placements)","R5420"
"Wolverhampton City Council","http://opendatacommunities.org/id/metropolitan-district-council/wolverhampton","706697","Radis Community Care","2608201820180905","21.78","TPP - Home Care","190502468","07/09/2018","Physical Disabilities Care Purchasing","PD Care Purchasing (Spot Placements)","R5420"
"Wolverhampton City Council","http://opendatacommunities.org/id/metropolitan-district-council/wolverhampton","706697","Radis Community Care","2608201820180905","192.39","TPP - Home Care","190502468","07/09/2018","Physical Disabilities Care Purchasing","PD Care Purchasing (Spot Placements)","R5420"
"Wolverhampton City Council","http://opendatacommunities.org/id/metropolitan-district-council/wolverhampton","706697","Radis Community Care","2608201820180905","39.93","TPP - Home Care","190502468","07/09/2018","Older People Care Purchasing","OP Care Purchasing (Spot Placements)","R5420"
"Wolverhampton City Council","http://opendatacommunities.org/id/metropolitan-district-council/wolverhampton","706697","Radis Community Care","2608201820180905","76.23","TPP - Home Care","190502468","07/09/2018","Physical Disabilities Care Purchasing","PD Care Purchasing (Spot Placements)","R5420"
"Wolverhampton City Council","http://opendatacommunities.org/id/metropolitan-district-council/wolverhampton","706697","Radis Community Care","2608201820180905","76.23","TPP - Home Care","190502468","07/09/2018","Physical Disabilities Care Purchasing","PD Care Purchasing (Spot Placements)","R5420"
"Wolverhampton City Council","http://opendatacommunities.org/id/metropolitan-district-council/wolverhampton","706697","Radis Community Care","2608201820180905","36.30","TPP - Home Care","190502468","07/09/2018","Physical Disabilities Care Purchasing","PD Care Purchasing (Spot Placements)","R5420"
"Wolverhampton City Council","http://opendatacommunities.org/id/metropolitan-district-council/wolverhampton","706697","Radis Community Care","2608201820180905","235.95","TPP - Home Care","190502468","07/09/2018","Older People Care Purchasing","OP Care Purchasing (Spot Placements)","R5420"
"Wolverhampton City Council","http://opendatacommunities.org/id/metropolitan-district-council/wolverhampton","706697","Radis Community Care","2608201820180905","206.91","TPP - Home Care","190502468","07/09/2018","Older People Care Purchasing","OP Care Purchasing (Spot Placements)","R5420"
"Wolverhampton City Council","http://opendatacommunities.org/id/metropolitan-district-council/wolverhampton","706697","Radis Community Care","2608201820180905","225.06","TPP - Home Care","190502468","07/09/2018","Older People Care Purchasing","OP Care Purchasing (Spot Placements)","R5420"
"Wolverhampton City Council","http://opendatacommunities.org/id/metropolitan-district-council/wolverhampton","706697","Radis Community Care","2608201820180905","159.72","TPP - Home Care","190502468","07/09/2018","Older People Care Purchasing","OP Care Purchasing (Spot Placements)","R5420"
"Wolverhampton City Council","http://opendatacommunities.org/id/metropolitan-district-council/wolverhampton","706697","Radis Community Care","2608201820180905","76.23","TPP - Home Care","190502468","07/09/2018","Older People Care Purchasing","OP Care Purchasing (Spot Placements)","R5420"
"Wolverhampton City Council","http://opendatacommunities.org/id/metropolitan-district-council/wolverhampton","706697","Radis Community Care","2608201820180905","203.28","TPP - Home Care","190502468","07/09/2018","Older People Care Purchasing","OP Care Purchasing (Spot Placements)","R5420"
"Wolverhampton City Council","http://opendatacommunities.org/id/metropolitan-district-council/wolverhampton","706697","Radis Community Care","2608201820180905","127.05","TPP - Home Care","190502468","07/09/2018","Older People Care Purchasing","OP Care Purchasing (Spot Placements)","R5420"
"Wolverhampton City Council","http://opendatacommunities.org/id/metropolitan-district-council/wolverhampton","706697","Radis Community Care","2608201820180905","54.45","TPP - Home Care","190502468","07/09/2018","Older People Care Purchasing","OP Care Purchasing (Spot Placements)","R5420"
"Wolverhampton City Council","http://opendatacommunities.org/id/metropolitan-district-council/wolverhampton","706697","Radis Community Care","2608201820180905","50.82","TPP - Home Care","190502468","07/09/2018","Older People Care Purchasing","OP Care Purchasing (Spot Placements)","R5420"
"Wolverhampton City Council","http://opendatacommunities.org/id/metropolitan-district-council/wolverhampton","706697","Radis Community Care","2608201820180905","50.82","TPP - Home Care","190502468","07/09/2018","Older People Care Purchasing","OP Care Purchasing (Spot Placements)","R5420"
"Wolverhampton City Council","http://opendatacommunities.org/id/metropolitan-district-council/wolverhampton","706697","Radis Community Care","2608201820180905","50.82","TPP - Home Care","190502468","07/09/2018","Older People Care Purchasing","OP Care Purchasing (Spot Placements)","R5420"
"Wolverhampton City Council","http://opendatacommunities.org/id/metropolitan-district-council/wolverhampton","706697","Radis Community Care","2608201820180905","50.82","TPP - Home Care","190502468","07/09/2018","Older People Care Purchasing","OP Care Purchasing (Spot Placements)","R5420"
"Wolverhampton City Council","http://opendatacommunities.org/id/metropolitan-district-council/wolverhampton","706697","Radis Community Care","2608201820180905","232.32","TPP - Home Care","190502468","07/09/2018","Older People Care Purchasing","OP Care Purchasing (Spot Placements)","R5420"
"Wolverhampton City Council","http://opendatacommunities.org/id/metropolitan-district-council/wolverhampton","706697","Radis Community Care","2608201820180905","243.21","TPP - Home Care","190502468","07/09/2018","Older People Care Purchasing","OP Care Purchasing (Spot Placements)","R5420"
"Wolverhampton City Council","http://opendatacommunities.org/id/metropolitan-district-council/wolverhampton","706697","Radis Community Care","2608201820180905","101.64","TPP - Home Care","190502468","07/09/2018","Older People Care Purchasing","OP Care Purchasing (Spot Placements)","R5420"
"Wolverhampton City Council","http://opendatacommunities.org/id/metropolitan-district-council/wolverhampton","706697","Radis Community Care","2608201820180905","152.46","TPP - Home Care","190502468","07/09/2018","Older People Care Purchasing","OP Care Purchasing (Spot Placements)","R5420"
"Wolverhampton City Council","http://opendatacommunities.org/id/metropolitan-district-council/wolverhampton","706697","Radis Community Care","2608201820180905","101.64","TPP - Home Care","190502468","07/09/2018","Older People Care Purchasing","OP Care Purchasing (Spot Placements)","R5420"
"Wolverhampton City Council","http://opendatacommunities.org/id/metropolitan-district-council/wolverhampton","706697","Radis Community Care","2608201820180905","170.61","TPP - Home Care","190502468","07/09/2018","Older People Care Purchasing","OP Care Purchasing (Spot Placements)","R5420"
"Wolverhampton City Council","http://opendatacommunities.org/id/metropolitan-district-council/wolverhampton","706697","Radis Community Care","2608201820180905","156.09","TPP - Home Care","190502468","07/09/2018","Older People Care Purchasing","OP Care Purchasing (Spot Placements)","R5420"
"Wolverhampton City Council","http://opendatacommunities.org/id/metropolitan-district-council/wolverhampton","706697","Radis Community Care","2608201820180905","72.60","TPP - Home Care","190502468","07/09/2018","Older People Care Purchasing","OP Care Purchasing (Spot Placements)","R5420"
"Wolverhampton City Council","http://opendatacommunities.org/id/metropolitan-district-council/wolverhampton","706697","Radis Community Care","2608201820180905","41.40","TPP - Carer Support Service","190502468","07/09/2018","Carer Support","CS Care Purchasing (Spot Placements)","R5421"
"Wolverhampton City Council","http://opendatacommunities.org/id/metropolitan-district-council/wolverhampton","706697","Radis Community Care","2608201820180905","94.38","TPP - Home Care","190502468","07/09/2018","Older People Care Purchasing","OP Care Purchasing (Spot Placements)","R5420"
"Wolverhampton City Council","http://opendatacommunities.org/id/metropolitan-district-council/wolverhampton","706697","Radis Community Care","2608201820180905","29.04","TPP - Home Care","190502468","07/09/2018","Older People Care Purchasing","OP Care Purchasing (Spot Placements)","R5420"
"Wolverhampton City Council","http://opendatacommunities.org/id/metropolitan-district-council/wolverhampton","706697","Radis Community Care","2608201820180905","98.01","TPP - Home Care","190502468","07/09/2018","Older People Care Purchasing","OP Care Purchasing (Spot Placements)","R5420"
"Wolverhampton City Council","http://opendatacommunities.org/id/metropolitan-district-council/wolverhampton","706697","Radis Community Care","2608201820180905","36.30","TPP - Home Care","190502468","07/09/2018","Older People Care Purchasing","OP Care Purchasing (Spot Placements)","R5420"
"Wolverhampton City Council","http://opendatacommunities.org/id/metropolitan-district-council/wolverhampton","706697","Radis Community Care","2608201820180905","156.09","TPP - Home Care","190502468","07/09/2018","Older People Care Purchasing","OP Care Purchasing (Spot Placements)","R5420"
"Wolverhampton City Council","http://opendatacommunities.org/id/metropolitan-district-council/wolverhampton","706697","Radis Community Care","2608201820180905","156.09","TPP - Home Care","190502468","07/09/2018","Older People Care Purchasing","OP Care Purchasing (Spot Placements)","R5420"
"Wolverhampton City Council","http://opendatacommunities.org/id/metropolitan-district-council/wolverhampton","706697","Radis Community Care","2608201820180905","148.83","TPP - Home Care","190502468","07/09/2018","Older People Care Purchasing","OP Care Purchasing (Spot Placements)","R5420"
"Wolverhampton City Council","http://opendatacommunities.org/id/metropolitan-district-council/wolverhampton","706697","Radis Community Care","2608201820180905","61.71","TPP - Home Care","190502468","07/09/2018","Older People Care Purchasing","OP Care Purchasing (Spot Placements)","R5420"
"Wolverhampton City Council","http://opendatacommunities.org/id/metropolitan-district-council/wolverhampton","706697","Radis Community Care","2608201820180905","83.49","TPP - Home Care","190502468","07/09/2018","Older People Care Purchasing","OP Care Purchasing (Spot Placements)","R5420"
"Wolverhampton City Council","http://opendatacommunities.org/id/metropolitan-district-council/wolverhampton","706697","Radis Community Care","2608201820180905","29.04","TPP - Home Care","190502468","07/09/2018","Older People Care Purchasing","OP Care Purchasing (Spot Placements)","R5420"
"Wolverhampton City Council","http://opendatacommunities.org/id/metropolitan-district-council/wolverhampton","706697","Radis Community Care","2608201820180905","36.30","TPP - Home Care","190502468","07/09/2018","Older People Care Purchasing","OP Care Purchasing (Spot Placements)","R5420"
"Wolverhampton City Council","http://opendatacommunities.org/id/metropolitan-district-council/wolverhampton","706697","Radis Community Care","2608201820180905","87.12","TPP - Home Care","190502468","07/09/2018","Older People Care Purchasing","OP Care Purchasing (Spot Placements)","R5420"
"Wolverhampton City Council","http://opendatacommunities.org/id/metropolitan-district-council/wolverhampton","706697","Radis Community Care","2608201820180905","101.64","TPP - Home Care","190502468","07/09/2018","Older People Care Purchasing","OP Care Purchasing (Spot Placements)","R5420"
"Wolverhampton City Council","http://opendatacommunities.org/id/metropolitan-district-council/wolverhampton","706697","Radis Community Care","2608201820180905","94.38","TPP - Home Care","190502468","07/09/2018","Older People Care Purchasing","OP Care Purchasing (Spot Placements)","R5420"
"Wolverhampton City Council","http://opendatacommunities.org/id/metropolitan-district-council/wolverhampton","706697","Radis Community Care","2608201820180905","69.00","TPP - Carer Support Service","190502468","07/09/2018","Carer Support","CS Care Purchasing (Spot Placements)","R5421"
"Wolverhampton City Council","http://opendatacommunities.org/id/metropolitan-district-council/wolverhampton","706697","Radis Community Care","2608201820180905","181.50","TPP - Home Care","190502468","07/09/2018","Older People Care Purchasing","OP Care Purchasing (Spot Placements)","R5420"
"Wolverhampton City Council","http://opendatacommunities.org/id/metropolitan-district-council/wolverhampton","706697","Radis Community Care","2608201820180905","181.50","TPP - Home Care","190502468","07/09/2018","Older People Care Purchasing","OP Care Purchasing (Spot Placements)","R5420"
"Wolverhampton City Council","http://opendatacommunities.org/id/metropolitan-district-council/wolverhampton","706697","Radis Community Care","2608201820180905","156.09","TPP - Home Care","190502468","07/09/2018","Older People Care Purchasing","OP Care Purchasing (Spot Placements)","R5420"
"Wolverhampton City Council","http://opendatacommunities.org/id/metropolitan-district-council/wolverhampton","706697","Radis Community Care","2608201820180905","116.16","TPP - Home Care","190502468","07/09/2018","Older People Care Purchasing","OP Care Purchasing (Spot Placements)","R5420"
"Wolverhampton City Council","http://opendatacommunities.org/id/metropolitan-district-council/wolverhampton","706697","Radis Community Care","2608201820180905","199.65","TPP - Home Care","190502468","07/09/2018","Older People Care Purchasing","OP Care Purchasing (Spot Placements)","R5420"
"Wolverhampton City Council","http://opendatacommunities.org/id/metropolitan-district-council/wolverhampton","706697","Radis Community Care","2608201820180905","47.19","TPP - Home Care","190502468","07/09/2018","Older People Care Purchasing","OP Care Purchasing (Spot Placements)","R5420"
"Wolverhampton City Council","http://opendatacommunities.org/id/metropolitan-district-council/wolverhampton","706697","Radis Community Care","2608201820180905","152.46","TPP - Home Care","190502468","07/09/2018","Physical Disabilities Care Purchasing","PD Care Purchasing (Spot Placements)","R5420"
"Wolverhampton City Council","http://opendatacommunities.org/id/metropolitan-district-council/wolverhampton","706697","Radis Community Care","2608201820180905","166.98","TPP - Home Care","190502468","07/09/2018","Physical Disabilities Care Purchasing","PD Care Purchasing (Spot Placements)","R5420"
"Wolverhampton City Council","http://opendatacommunities.org/id/metropolitan-district-council/wolverhampton","706697","Radis Community Care","2608201820180905","50.82","TPP - Home Care","190502468","07/09/2018","Older People Care Purchasing","OP Care Purchasing (Spot Placements)","R5420"
"Wolverhampton City Council","http://opendatacommunities.org/id/metropolitan-district-council/wolverhampton","706697","Radis Community Care","2608201820180905","156.09","TPP - Home Care","190502468","07/09/2018","Older People Care Purchasing","OP Care Purchasing (Spot Placements)","R5420"
"Wolverhampton City Council","http://opendatacommunities.org/id/metropolitan-district-council/wolverhampton","706697","Radis Community Care","2608201820180905","58.08","TPP - Home Care","190502468","07/09/2018","Older People Care Purchasing","OP Care Purchasing (Spot Placements)","R5420"
"Wolverhampton City Council","http://opendatacommunities.org/id/metropolitan-district-council/wolverhampton","706697","Radis Community Care","2608201820180905","87.12","TPP - Home Care","190502468","07/09/2018","Older People Care Purchasing","OP Care Purchasing (Spot Placements)","R5420"
"Wolverhampton City Council","http://opendatacommunities.org/id/metropolitan-district-council/wolverhampton","706697","Radis Community Care","2608201820180905","65.34","TPP - Home Care","190502468","07/09/2018","Older People Care Purchasing","OP Care Purchasing (Spot Placements)","R5420"
"Wolverhampton City Council","http://opendatacommunities.org/id/metropolitan-district-council/wolverhampton","706697","Radis Community Care","2608201820180905","44.85","TPP - Carer Support Service","190502468","07/09/2018","Carer Support","CS Care Purchasing (Spot Placements)","R5421"
"Wolverhampton City Council","http://opendatacommunities.org/id/metropolitan-district-council/wolverhampton","706697","Radis Community Care","2608201820180905","192.39","TPP - Home Care","190502468","07/09/2018","Older People Care Purchasing","OP Care Purchasing (Spot Placements)","R5420"
"Wolverhampton City Council","http://opendatacommunities.org/id/metropolitan-district-council/wolverhampton","706697","Radis Community Care","2608201820180905","37.95","TPP - Carer Support Service","190502468","07/09/2018","Carer Support","CS Care Purchasing (Spot Placements)","R5421"
"Wolverhampton City Council","http://opendatacommunities.org/id/metropolitan-district-council/wolverhampton","706697","Radis Community Care","2608201820180905","206.91","TPP - Home Care","190502468","07/09/2018","Older People Care Purchasing","OP Care Purchasing (Spot Placements)","R5420"
"Wolverhampton City Council","http://opendatacommunities.org/id/metropolitan-district-council/wolverhampton","706697","Radis Community Care","2608201820180905","210.54","TPP - Home Care","190502468","07/09/2018","Older People Care Purchasing","OP Care Purchasing (Spot Placements)","R5420"
"Wolverhampton City Council","http://opendatacommunities.org/id/metropolitan-district-council/wolverhampton","706697","Radis Community Care","2608201820180905","228.69","TPP - Home Care","190502468","07/09/2018","Older People Care Purchasing","OP Care Purchasing (Spot Placements)","R5420"
"Wolverhampton City Council","http://opendatacommunities.org/id/metropolitan-district-council/wolverhampton","706697","Radis Community Care","2608201820180905","98.01","TPP - Home Care","190502468","07/09/2018","Older People Care Purchasing","OP Care Purchasing (Spot Placements)","R5420"
"Wolverhampton City Council","http://opendatacommunities.org/id/metropolitan-district-council/wolverhampton","706697","Radis Community Care","2608201820180905","130.68","TPP - Home Care","190502468","07/09/2018","Older People Care Purchasing","OP Care Purchasing (Spot Placements)","R5420"
"Wolverhampton City Council","http://opendatacommunities.org/id/metropolitan-district-council/wolverhampton","706697","Radis Community Care","2608201820180905","94.38","TPP - Home Care","190502468","07/09/2018","Older People Care Purchasing","OP Care Purchasing (Spot Placements)","R5420"
"Wolverhampton City Council","http://opendatacommunities.org/id/metropolitan-district-council/wolverhampton","706697","Radis Community Care","2608201820180905","402.93","TPP - Home Care","190502468","07/09/2018","Older People Care Purchasing","OP Care Purchasing (Spot Placements)","R5420"
"Wolverhampton City Council","http://opendatacommunities.org/id/metropolitan-district-council/wolverhampton","706697","Radis Community Care","2608201820180905","185.13","TPP - Home Care","190502468","07/09/2018","Physical Disabilities Care Purchasing","PD Care Purchasing (Spot Placements)","R5420"
"Wolverhampton City Council","http://opendatacommunities.org/id/metropolitan-district-council/wolverhampton","706697","Radis Community Care","2608201820180905","174.24","TPP - Home Care","190502468","07/09/2018","Physical Disabilities Care Purchasing","PD Care Purchasing (Spot Placements)","R5420"
"Wolverhampton City Council","http://opendatacommunities.org/id/metropolitan-district-council/wolverhampton","706697","Radis Community Care","2608201820180905","261.36","TPP - Home Care","190502468","07/09/2018","Older People Care Purchasing","OP Care Purchasing (Spot Placements)","R5420"
"Wolverhampton City Council","http://opendatacommunities.org/id/metropolitan-district-council/wolverhampton","706697","Radis Community Care","2608201820180905","199.65","TPP - Home Care","190502468","07/09/2018","Older People Care Purchasing","OP Care Purchasing (Spot Placements)","R5420"
"Wolverhampton City Council","http://opendatacommunities.org/id/metropolitan-district-council/wolverhampton","706697","Radis Community Care","2608201820180905","101.64","TPP - Home Care","190502468","07/09/2018","Physical Disabilities Care Purchasing","PD Care Purchasing (Spot Placements)","R5420"
"Wolverhampton City Council","http://opendatacommunities.org/id/metropolitan-district-council/wolverhampton","706697","Radis Community Care","2608201820180905","101.64","TPP - Home Care","190502468","07/09/2018","Physical Disabilities Care Purchasing","PD Care Purchasing (Spot Placements)","R5420"
"Wolverhampton City Council","http://opendatacommunities.org/id/metropolitan-district-council/wolverhampton","706697","Radis Community Care","2608201820180905","185.13","TPP - Home Care","190502468","07/09/2018","Older People Care Purchasing","OP Care Purchasing (Spot Placements)","R5420"
"Wolverhampton City Council","http://opendatacommunities.org/id/metropolitan-district-council/wolverhampton","706697","Radis Community Care","2608201820180905","98.01","TPP - Home Care","190502468","07/09/2018","Older People Care Purchasing","OP Care Purchasing (Spot Placements)","R5420"
